Cogmind - Beta 17 @@@ ROGUE MODE // 2026.07.25 @ 19:23:27 Player: Dadrick Result: Destroyed by S-43 Plague with Heavy Machine Gun Performance ------------- Evolutions (9) 4500 Regions Visited (33) 6600 Robots Destroyed (403) 2015 Value Destroyed (17107) 17107 Prototype IDs (69) 1380 Alien Tech Used (3) 600 Bonus (21738) 21738 TOTAL SCORE: 53940 Bonus ------- High Alert Combat Kills 961 Follower Combat Kills 2286 Entered Garrisons 400 Met Data Miner 300 Acquired ECA 300 Met Zhirov 300 Met Warlord at Base 500 MAIN.C Attacked Warlord 500 Warlord Defense Kills 2116 Built Enhanced Grunts 300 Met R17 at Cetus 500 Met R17 at Research 2000 Met Warlord at Research 2000 Destroyed MAIN.C Guards 500 Met MAIN.C 5000 Destroyed MAIN.C Shell 5000 Met Warlord at Command 2000 Friendly Fire -3225 Cogmind --------- Core Integrity 0/1600 Matter 193/300 Energy 477/600 System Corruption 17% Temperature Cool (0) Movement Core (400) Ox7 Location -1/Command Parts ------- > --- POWER (3) -------- (None) > --- PROPULSION (7) --- (None) > --- UTILITY (11) ----- Large Storage Unit Advanced Energy Well Experimental Core Analyzer Experimental Core Analyzer > --- WEAPON (5) ------- (None) > --- INVENTORY (15) --- Experimental Matter Compressor (500) Advanced Sensor Array Advanced Sensor Array Advanced Transmission Jammer Transdimensional Reconstructor Compact HERF Cannon Improved Potential Cannon Gamma Bomb Array Peak State ------------ > --- POWER ------------ Micro Antimatter Reactor Compact Particle Reactor Light Quantum Reactor > --- PROPULSION ------- Cooled Gravmag System Cooled Antigrav System Combat Antigrav System Combat Antigrav System Combat Antigrav System Combat Antigrav System Combat Antigrav System > --- UTILITY ---------- Experimental Heat Sink Large Storage Unit Advanced Energy Well Experimental Signal Interpreter Advanced Targeting Computer Experimental Core Analyzer Experimental Core Analyzer Layered Light Armor Plating Centrium Medium Armor Plating Centrium Medium Armor Plating Centrium Medium Armor Plating > --- WEAPON ----------- Improved Potential Cannon Advanced KE Penetrator Helical Railgun Thunder Hammer > --- INVENTORY -------- Antigrav System Experimental Matter Compressor Advanced Sensor Array Advanced Sensor Array Advanced Transmission Jammer Layered Light Armor Plating Transdimensional Reconstructor Compact HERF Cannon Gamma Bomb Array [Rating: 216] Favorites ----------- Power Light Antimatter Reactor Engine Heavy Ion Engine Power Core Light Nuclear Core Reactor Light Antimatter Reactor Propulsion Aluminum Leg Treads Improved Treads Leg Aluminum Leg Wheel Compact Wheel Hover Unit Combat Antigrav System Utility Large Storage Unit Device Advanced Heat Sink Storage Large Storage Unit Processor Advanced Signal Interpreter Hackware Advanced Hacking Suite Protection Improved Light Armor Plating Weapon Helical Railgun Energy Gun Improved Heavy Laser Energy Cannon Neutron Cannon Ballistic Gun Helical Railgun Ballistic Cannon Light Cannon Launcher Scatter Rocket Array Special Weapon Mining Laser Impact Weapon Thunder Hammer Slashing Weapon Scythe Build | -11 -10 -10 -9 -9 -8 -8 -7 -7 -7 -7 -6 -6 -6 -6 -6 -6 -6 -5 -5 -5 -5 -4 -4 -4 -4 -4 -3 -3 -3 -2 -2 -1 -1 ------- Run | Yrd Mat Min Mat Min Mat Gar Fac Low Low Dat Pro Fac Gar Fac Ext Cet Arc Fac Upp Upp Zhi Pro Fac Upp Upp War Pro Res Tes Res Qua Acc Com Slots Evolved 18 | . . . 2 . 2 . 2 . . . . 2 . . . . . 2 . . . . 2 . . . . 2 . 2 . 2 . Power 1 | . . . . . . . . . . . . . . . . . . 1 . . . . . . . . . . . . . . . Propulsion 5 | . . . 1 . 1 . . . . . . . . . . . . 1 . . . . 1 . . . . . . 1 . . . Utility 9 | . . . . . 1 . 1 . . . . 2 . . . . . . . . . . 1 . . . . 2 . 1 . 1 . Weapon 3 | . . . 1 . . . 1 . . . . . . . . . . . . . . . . . . . . . . . . 1 . Parts Attached 294 | 8 9 3 25 . 15 11 6 3 . . 3 19 14 23 18 10 2 27 . 2 4 3 24 . 1 17 2 14 5 10 2 5 9 Power 31 | 1 1 1 1 . 2 . 1 . . . 1 1 4 1 4 1 . 2 . . 1 . 2 . . 1 1 1 . 1 . . 3 Engine 12 | 1 . . 1 . 2 . 1 . . . . 1 2 . 4 . . . . . . . . . . . . . . . . . . Core 5 | . 1 1 . . . . . . . . . . 1 . . . . 1 . . . . . . . 1 . . . . . . . Reactor 14 | . . . . . . . . . . . 1 . 1 1 . 1 . 1 . . 1 . 2 . . . 1 1 . 1 . . 3 Propulsion 85 | 2 4 1 11 . 8 6 1 . . . 2 3 2 7 8 1 . 5 . . . 2 14 . . 1 . 3 1 1 . 1 1 Treads 3 | . . . . . 1 . . . . . . . . . . . . . . . . . 2 . . . . . . . . . . Leg 65 | 2 4 1 11 . 5 6 1 . . . 2 3 2 7 8 1 . 5 . . . 2 5 . . . . . . . . . . Wheel 2 | . . . . . 2 . . . . . . . . . . . . . . . . . . . . . . . . . . . . Hover 15 | . . . . . . . . . . . . . . . . . . . . . . . 7 . . 1 . 3 1 1 . 1 1 Flight . | . . . . . . . . . . . . . . . . . . . . . . . . . . . . . . . . . . Utility 107 | 2 1 . 4 . 3 2 3 1 . . . 9 4 6 4 5 2 13 . 2 3 1 6 . 1 11 1 6 3 5 2 3 4 Device 47 | 1 . . . . . 1 1 . . . . 5 1 4 1 4 2 7 . 2 2 1 3 . . 7 . 3 1 . . 1 . Storage 11 | 1 1 . 2 . . . . . . . . . . . . . . 2 . . . . . . . 1 . . 1 2 . . 1 Processor 14 | . . . 1 . . . 1 . . . . 2 . 2 . . . 1 . . . . . . 1 2 1 2 . 1 . . . Hackware 4 | . . . . . . . . . . . . . . . . . . . . . . . . . . . . . 1 1 . 2 . Protection 31 | . . . 1 . 3 1 1 1 . . . 2 3 . 3 1 . 3 . . 1 . 3 . . 1 . 1 . 1 2 . 3 Artifact . | . . . . . . . . . . . . . . . . . . . . . . . . . . . . . . . . . . Weapon 71 | 3 3 1 9 . 2 3 1 2 . . . 6 4 9 2 3 . 7 . . . . 2 . . 4 . 4 1 3 . 1 1 Energy Gun 12 | . . . . . . . . . . . . . 2 5 2 2 . . . . . . . . . 1 . . . . . . . Energy Cannon 4 | . . . . . . . . . . . . . . . . 1 . . . . . . . . . 1 . . 1 . . . 1 Ballistic Gun 43 | 3 . . 8 . 2 3 . 2 . . . 5 2 4 . . . 5 . . . . 2 . . 1 . 4 . 1 . 1 . Ballistic Cannon 3 | . 2 . . . . . . . . . . . . . . . . . . . . . . . . 1 . . . . . . . Launcher 3 | . . 1 . . . . . . . . . 1 . . . . . 1 . . . . . . . . . . . . . . . Special Weapon 2 | . 1 . . . . . 1 . . . . . . . . . . . . . . . . . . . . . . . . . . Impact Weapon 1 | . . . . . . . . . . . . . . . . . . . . . . . . . . . . . . 1 . . . Slashing Weapon 3 | . . . 1 . . . . . . . . . . . . . . 1 . . . . . . . . . . . 1 . . . Piercing Weapon . | . . . . . . . . . . . . . . . . . . . . . . . . . . . . . . . . . . Special Melee Weapon . | . . . . . . . . . . . . . . . . . . . . . . . . . . . . . . . . . . Unidentified Prototypes 33 | . . . 1 . . . . . . . . 1 . . . 5 . 6 . 1 4 . 1 . . 8 . . 2 2 1 . 1 Corrupted Parts 2 | . . . . . . . . . . . . . . . . . . . . . . . 2 . . . . . . . . . . System Corruption 4 | . . . . . . . . . . . . . . . . . . . . . . . 4 . . . . . . . . . . Parts Lost 107 | . 1 . 3 . 7 4 . 4 . . . 4 10 19 3 . . 7 . . . 1 13 . . 2 . . . . . 2 27 Power 18 | . . . . . 1 . . 1 . . . 1 2 2 2 . . 1 . . . . 1 . . 1 . . . . . 1 5 Propulsion 30 | . 1 . 2 . 3 1 . 1 . . . . 1 7 . . . 1 . . . 1 4 . . . . . . . . 1 7 Utility 33 | . . . . . 2 1 . 1 . . . 1 3 5 . . . 4 . . . . 5 . . 1 . . . . . . 10 Weapon 26 | . . . 1 . 1 2 . 1 . . . 2 4 5 1 . . 1 . . . . 3 . . . . . . . . . 5 Highest Loss Streak 25 | . 1 . 2 . 5 2 . 3 . . . 2 4 5 1 . . 3 . . . 1 9 . . 1 . . . . . 2 25 To Critical Strikes 1 | . . . . . . . . . . . . . . . . . . . . . . 1 . . . . . . . . . . . Average Backups 11 | 1 6 8 9 9 9 14 14 14 15 15 15 14 14 14 14 15 15 8 10 10 10 10 8 9 9 8 10 10 9 12 14 12 12 Power . | . 1 1 1 1 . 1 1 1 1 1 1 . . 1 . 1 1 . 1 1 1 1 1 1 1 1 . . . . 1 1 . Propulsion 1 | . . 1 . 1 1 3 3 2 2 2 2 2 2 1 2 3 3 . . . . . . . . . 1 1 1 . 1 . . Utility 4 | . . 1 4 3 2 3 4 5 7 7 7 6 6 5 5 6 6 2 4 4 4 4 4 4 4 3 4 3 3 5 7 7 6 Weapon 3 | 1 4 5 3 4 5 6 4 3 3 3 3 3 3 3 3 3 3 3 4 4 3 3 2 3 3 2 3 3 2 3 3 2 2 Tool/Special . | . . . . . . . . . . . . . . . . . . . . . . . . . . . . . . . . . . Unused Backups 26 | . 3 . 4 . 1 1 . . . . . 2 1 . 1 . . 4 . . 1 . . . . 2 . . . 2 . . 4 Power 3 | . . . 1 . . . . . . . . 1 1 . . . . . . . . . . . . . . . . . . . . Propulsion 4 | . . . . . . 1 . . . . . 1 . . 1 . . 1 . . . . . . . . . . . . . . . Utility 10 | . 1 . 2 . 1 . . . . . . . . . . . . 3 . . . . . . . . . . . 2 . . 1 Weapon 8 | . 2 . 1 . . . . . . . . . . . . . . . . . 1 . . . . 2 . . . . . . 2 Tool/Special 1 | . . . . . . . . . . . . . . . . . . . . . . . . . . . . . . . . . 1 Average Slot Usage (%) 96 | . 99 100 99 100 89 99 98 99 100 78 100 97 85 88 99 100 100 99 94 93 75 93 89 90 91 95 99 97 99 99 100 97 95 Engine 3 | . 5 . 3 11 7 9 7 7 7 7 5 3 2 . 6 5 . 3 . . . . . . . . . . . . . . . Core 1 | . 8 14 7 . . . . . . . . . . . . . . . . . . . . . . 1 5 1 . . . . . Reactor 5 | . . . . . . . . . . . 1 2 2 5 . 1 6 6 11 11 13 16 13 10 10 9 9 10 13 12 12 10 9 Leg 20 | . 27 28 32 33 30 35 30 29 30 30 30 24 19 19 25 26 26 28 29 28 27 26 18 . . . . . . . . . . Hover 7 | . . . . . . . . . . . . . . . . . . . . . . . 6 30 30 30 30 27 27 29 29 26 25 Device 9 | . 14 14 2 6 3 1 6 7 7 7 7 13 7 10 13 13 13 10 11 11 10 11 17 15 15 11 14 15 12 12 12 10 9 Storage 6 | . 14 14 11 11 9 9 7 7 7 7 7 6 6 6 6 6 6 3 5 5 5 5 5 5 5 5 5 4 4 4 4 3 3 Processor 9 | . . . 7 4 . . 4 7 7 7 7 12 13 15 14 13 13 10 5 5 5 5 5 5 6 13 15 17 18 16 16 15 14 Protection 5 | . . . 1 . 9 16 9 6 7 7 7 5 8 3 4 6 6 6 5 5 5 5 3 5 5 4 . 2 3 4 4 . 4 Energy Gun 3 | . . . . . . . . . . . . . 6 11 23 25 26 13 1 . . . . . . . . . . . . . . Ballistic Gun 15 | . 19 . 28 33 26 23 24 29 29 2 27 24 14 11 2 . . 7 17 16 . 16 13 10 10 10 10 11 13 12 12 12 13 Slashing Weapon 1 | . . . 1 . . 3 5 . . 7 2 1 1 1 . . . . 3 5 5 4 4 5 5 4 5 4 4 1 . . . Peak Build Rating 216 | 7 10 10 18 18 28 28 35 33 33 33 43 65 70 83 73 94 94 119 115 111 120 122 130 108 112 137 140 166 174 192 192 206 216 Average Rating 83 | 5 8 10 16 17 21 24 31 31 33 26 36 57 60 69 68 80 93 105 111 109 88 119 119 108 108 122 139 152 162 186 190 196 198 On Entrance 82 | . 7 10 10 18 17 28 23 33 33 33 33 43 64 67 61 73 94 94 115 110 110 120 119 108 108 112 128 140 164 163 192 190 200 Avg Prop Armor Cover (%) 5 | . . . . . 8 . . . . . . . 4 . . . . 4 . . . . 7 . . . . . . . . 2 3 Naked Turns . | . . . . . . . . . . . . . . . . . . . . . . . . . . . . . . . . . . Heaviest Build 118 | 13 17 18 27 28 42 43 62 46 43 42 47 52 55 56 59 65 59 70 70 67 85 96 97 66 66 72 71 83 78 93 92 101 118 Greatest Support 123 | 20 20 20 30 30 47 47 50 50 50 50 65 71 67 76 83 93 93 119 116 116 116 118 123 70 70 71 71 83 105 105 105 122 120 Greatest Overweight (x) 11 | . 1 . . . 11 . 1 . . . . . 1 1 1 . . . . . . 1 1 . . 1 . 1 . . . . 7 Average Overweight (x) . | . . . . . . . . . . . . . . . . . . . . . . . . . . . . . . . . . . Largest Inventory Capacity 25 | 8 15 8 15 10 15 15 15 15 15 15 15 15 15 15 15 15 15 25 10 10 10 10 10 10 10 10 10 10 10 15 15 15 15 Average Capacity 12 | 7 8 8 9 10 14 15 15 15 15 15 15 15 15 15 15 15 15 9 10 10 10 10 10 10 10 10 10 10 10 13 15 15 15 Most Carried 15 | 3 8 8 10 10 15 15 15 15 15 15 15 15 15 15 15 15 15 15 10 10 10 10 10 9 10 10 10 10 10 15 15 15 15 Average Carried 11 | 1 6 8 9 9 9 14 14 14 15 15 15 14 14 14 14 15 15 8 9 10 10 9 8 9 9 8 9 10 9 13 15 13 13 Final Capacity 15 | 8 8 8 10 10 15 15 15 15 15 15 15 15 15 15 15 15 15 10 10 10 10 10 10 10 10 10 10 10 10 15 15 15 15 Final Carried 15 | 3 8 8 10 9 15 15 15 15 15 15 15 15 15 13 15 15 15 10 10 10 10 10 9 9 10 10 10 10 10 15 15 11 9 Class Distribution -------------------- 27% | Scavenger-Skirmisher 25% | Scavenger-Gunner 18% | Scavenger-Tank 8% | Scavenger-Mutant 4% | Commander-Tank Dominant Class ---------------- Scavenger-Mutant | -10/Materials Scavenger-Mutant | -10/Mines Scavenger-Gunner | -9/Materials Scavenger-Gunner | -9/Mines Tank | -8/Materials Scavenger-Tank | -8/Garrison Scavenger-Skirmisher | -7/Factory Scavenger-Skirmisher | -7/Lower Caves Scavenger-Skirmisher | -7/Lower Caves Scavenger-Mutant | -7/Data Miner Scavenger-Skirmisher | -6/Proximity Caves Scavenger-Skirmisher | -6/Factory Scavenger-Tank | -6/Garrison Scavenger-Skirmisher | -6/Factory Scavenger-Tank | -6/Extension Commander-Tank | -6/Cetus Commander-Tank | -6/Archives Scavenger-Skirmisher | -5/Factory Scavenger-Skirmisher | -5/Upper Caves Scavenger-Skirmisher | -5/Upper Caves Scavenger-Mutant | -5/Zhirov Scavenger-Skirmisher | -4/Proximity Caves Scavenger-Skirmisher | -4/Factory Scavenger-Skirmisher | -4/Upper Caves Scavenger-Skirmisher | -4/Upper Caves Scavenger-Scout | -4/Warlord Scavenger-Gunner | -3/Proximity Caves Scavenger-Gunner | -3/Research Scavenger-Gunner | -3/Testing Scavenger-Gunner | -2/Research Scavenger-Gunner | -2/Quarantine Hacker-Gunner | -1/Access Scavenger-Gunner | -1/Command Resources | -11 -10 -10 -9 -9 -8 -8 -7 -7 -7 -7 -6 -6 -6 -6 -6 -6 -6 -5 -5 -5 -5 -4 -4 -4 -4 -4 -3 -3 -3 -2 -2 -1 -1 ----------- Run | Yrd Mat Min Mat Min Mat Gar Fac Low Low Dat Pro Fac Gar Fac Ext Cet Arc Fac Upp Upp Zhi Pro Fac Upp Upp War Pro Res Tes Res Qua Acc Com Matter Collected 14129 | 316 502 100 1441 46 642 720 168 422 66 . 208 678 818 798 431 152 40 942 143 254 118 371 1303 . 74 1141 35 799 98 306 112 336 549 Remotely 1080 | . . . . . . . . . . . . . . . . . . . . 33 . 71 280 . . 696 . . . . . . . Salvage Created 19709 | 130 570 161 1882 46 1117 792 165 329 50 . 259 763 982 1723 1349 301 279 1966 59 164 386 349 1761 . . 534 . 1174 . 588 476 350 1004 Parts 983 | 8 39 15 132 6 63 45 8 13 5 . 8 46 35 103 44 9 19 114 6 4 7 17 98 . . 26 . 45 . 17 6 15 30 Haulers Intercepted 19 | . 1 . 6 . 1 . 1 . . . . 2 . 1 . . . 1 . . . . 1 . . . . 2 . 2 1 . . Recyclers Shooed 13 | . 1 . . . 1 . . . . . . . . 6 . . . 3 . . . . . . . . . 1 . 1 . . . Parts Field Recycled . | . . . . . . . . . . . . . . . . . . . . . . . . . . . . . . . . . . Retrieved Matter . | . . . . . . . . . . . . . . . . . . . . . . . . . . . . . . . . . . Parts Self-Destructed 49 | . . . . . . . . 9 6 . 5 . . . . . . . 6 4 6 11 . . 2 . . . . . . . . Prevented 1 | . . . . . . . . . . . . . . . . . . . 1 . . . . . . . . . . . . . . Parts Restored . | . . . . . . . . . . . . . . . . . . . . . . . . . . . . . . . . . . Kills | -11 -10 -10 -9 -9 -8 -8 -7 -7 -7 -7 -6 -6 -6 -6 -6 -6 -6 -5 -5 -5 -5 -4 -4 -4 -4 -4 -3 -3 -3 -2 -2 -1 -1 ------- Run | Yrd Mat Min Mat Min Mat Gar Fac Low Low Dat Pro Fac Gar Fac Ext Cet Arc Fac Upp Upp Zhi Pro Fac Upp Upp War Pro Res Tes Res Qua Acc Com Combat Hostiles Destroyed 278 | . 13 5 28 3 16 17 2 10 1 . 2 13 24 22 11 3 . 24 . 3 . 9 25 . . 17 . 13 . 2 1 3 11 Guns 212 | . 10 . 27 3 16 13 2 5 1 . 2 13 14 18 11 . . 16 . 3 . 3 21 . . 7 . 12 . 2 1 3 9 Cannons 9 | . 3 2 1 . . . . . . . . . . . . . . . . . . . 1 . . 1 . 1 . . . . . AOE 52 | . . 3 . . . 4 . 5 . . . . 10 3 . . . 7 . . . 6 3 . . 9 . . . . . . 2 Classes Destroyed 24 | 2 5 . 5 . . 3 . . . . . 1 . . 1 . . 3 2 . . . . . . 2 . . . . . . . Worker 29 | . 1 . 4 . 5 . . . . . . 1 . 11 . . . 4 . . . . 1 . . . . 1 . . . 1 . Builder 21 | . . . 3 . 2 . . . . . . . . 5 2 . . 2 . . . . 5 . . . . 1 . . . 1 . Tunneler 2 | 2 . . . . . . . . . . . . . . . . . . . . . . . . . . . . . . . . . Hauler 19 | . 1 . 6 . 1 . 1 . . . . 2 . 1 . . . 1 . . . . 1 . . . . 2 . 2 1 . . Recycler 22 | 1 1 1 3 . 3 . . . . . . . . 1 3 . . 4 . . . . 2 . . . . . . 1 2 . . Minesweeper 1 | . . . . . . . . . . . . . . . . . . . 1 . . . . . . . . . . . . . . Mechanic 2 | . . . 1 . . . . . . . . . . . . . . 1 . . . . . . . . . . . . . . . Operator 12 | . . . 1 . 1 . . . . . . . . . 1 . 7 . . . . . . . . . . . . 1 1 . . Watcher 13 | . 2 . 4 . 2 . . . . . . 1 . 1 . . . 1 . . . . . . . . . . . . . 1 1 Swarmer 70 | . 6 3 6 3 5 . . 2 . . . 7 7 3 . . . 5 . 1 . 4 9 . . 6 . . . . . . 3 Cutter 1 | . . . . . . 1 . . . . . . . . . . . . . . . . . . . . . . . . . . . Saboteur 1 | . . . . . . . . . . . . . . . . . . . . . . . . . . 1 . . . . . . . Grunt 93 | . 7 2 13 . 8 11 . 6 . . 2 2 11 7 5 . . . . 1 . 3 5 . . 2 . 4 . 1 1 . 2 Brawler 7 | . . . . . . 1 . . . . . . 3 1 1 . . . . . . . . . . . . . . 1 . . . Duelist 4 | . . . 1 . . 1 . 1 . . . . . 1 . . . . . . . . . . . . . . . . . . . Protector 4 | . . . . . . . . . . . . . . . . . . 1 . . . . 1 . . 1 . 1 . . . . . Sentry 36 | . . . 8 . 3 2 1 1 . . . . 3 4 2 . . 2 . 1 . . 5 . . . . 1 . . . 2 1 Specialist 4 | . . . . . . . . . . . . . . . . . . 4 . . . . . . . . . . . . . . . Hunter 22 | . . . . . . . . . . . . 1 . 3 2 . . 5 . . . 2 2 . . 1 . 5 . . . 1 . Programmer 24 | . . . . . . 1 1 . 1 . . 3 . 3 . . . 5 . . . . 3 . . 3 . 1 . . . . 3 Heavy 1 | . . . . . . . . . . . . . . . . . . 1 . . . . . . . . . . . . . . . Behemoth 2 | . . . . . . . . . . . . . . . 1 . . . . . . . . . . . . 1 . . . . . Cetus Guard 3 | . . . . . . . . . . . . . . . . 3 . . . . . . . . . . . . . . . . . Enhanced Grunt 1 | . . . . . . . . . . . . . . . . . . 1 . . . . . . . . . . . . . . . Combat Programmer 1 | . . . . . . . . . . . . . . . . . . . . . . . . . . . . . . . . . 1 Executioner 3 | . . . . . . . . . . . . . . . . . . . . . . . . . . 3 . . . . . . . Decomposer 1 | . . . . . . . . . . . . . . . . . . . . . . 1 . . . . . . . . . . . Samaritan 1 | . . . . . . . . . . . . . . . . . . . 1 . . . . . . . . . . . . . . Thug 1 | . . . . . . . . . . . . . . . . . . . . . . . . . . . . . . 1 . . . Savage 1 | . . . . . . . . . . . . . . . 1 . . . . . . . . . . . . . . . . . . Butcher 1 | . . . . . . . . . . . . . . . 1 . . . . . . . . . . . . . . . . . . Best Kill Streak 17 | 3 4 3 5 2 17 5 1 4 1 . 2 4 6 11 4 2 4 9 1 3 . 7 11 . . 8 . 6 . 2 2 1 4 Combat Bots Only 10 | . 3 3 4 2 10 5 1 4 1 . 2 4 6 5 3 2 . 8 . 3 . 7 7 . . 8 . 6 . 2 1 1 4 Max Kills in Single Turn 8 | 2 1 3 2 1 2 2 1 2 1 . 1 1 4 4 2 1 2 8 1 1 . 6 3 . . 4 . 2 . 2 1 1 2 Gunslinging 1 | . . . . . 1 . . . . . . . 1 1 1 . . 1 . . . . . . . . . . . . . . . Exploded 7 | . . 3 . . . 2 . 2 . . . . 4 3 . . . 7 . . . 6 3 . . 4 . . . . . . 2 Melee . | . . . . . . . . . . . . . . . . . . . . . . . . . . . . . . . . . . Uniques/NPCs Destroyed 2 | . . . . . . . . . . . . . . . . 1 . . . . . . . . . . . . . . . . 1 A7 (-6/Cetus) MAIN.C Shell (-1/Command) Combat | -11 -10 -10 -9 -9 -8 -8 -7 -7 -7 -7 -6 -6 -6 -6 -6 -6 -6 -5 -5 -5 -5 -4 -4 -4 -4 -4 -3 -3 -3 -2 -2 -1 -1 -------- Run | Yrd Mat Min Mat Min Mat Gar Fac Low Low Dat Pro Fac Gar Fac Ext Cet Arc Fac Upp Upp Zhi Pro Fac Upp Upp War Pro Res Tes Res Qua Acc Com Hostile Shots Fired 2138 | . 53 7 115 4 98 79 26 60 7 . 22 73 166 305 55 1 3 220 . 16 . 94 212 . 2 35 . 98 18 20 11 94 244 Missed 718 | . 12 2 36 2 23 18 6 28 2 . 4 12 50 109 22 . 2 62 . 4 . 30 77 . 2 16 . 54 11 11 6 49 68 Hits 1420 | . 41 5 79 2 75 61 20 32 5 . 18 61 116 196 33 1 1 158 . 12 . 64 135 . . 19 . 44 7 9 5 45 176 Melee 17 | . . . 5 . . 5 . 2 . . . . . 5 . . . . . . . . . . . . . . . . . . . Projectile 1403 | . 41 5 74 2 75 56 20 30 5 . 18 61 116 191 33 1 1 158 . 12 . 64 135 . . 19 . 44 7 9 5 45 176 AOE 6 | . . . . . . . . . . . . . . . . . . . . . . . 1 . . 4 . . . . . . 1 Critical Strikes 59 | . 1 . 4 1 4 4 2 1 1 . 2 2 2 7 1 1 . 8 . . . 1 5 . . 2 . 1 . . . 1 8 Actively Blocked 1 | . . . . . . 1 . . . . . . . . . . . . . . . . . . . . . . . . . . . Part Disruptions 15 | . . . . . . . . . . . . . . . . . . 3 . . . . 2 . . . . . . . . 1 9 Damage Taken 26302 | . 483 75 1066 59 1077 984 266 369 73 . 337 971 1573 2549 715 189 23 3235 . 240 . 716 2312 . . 791 . 601 198 183 113 1045 6059 Core 3613 | . 63 14 145 7 77 92 29 15 . . 39 53 196 367 69 . . 359 . . . 53 191 . . 65 . 137 . 26 . 28 1588 Absorbed by Shields 2189 | . . . . . . . . . . . . . 106 . 12 64 . 285 . . . 420 668 . . 11 . 212 . 56 . 57 298 Redirected to Shielding 127 | . . . . . 30 97 . . . . . . . . . . . . . . . . . . . . . . . . . . . Regen/Repaired (Parts) 289 | . . . . . . . . . . . . . . . . . . . . . . . . . . 271 . . . 3 . 15 . Core Remaining (%) 72 | 100 . 69 . 62 . 69 . . . . 88 . . . . . 19 . . . . 58 . . . . 77 . 89 . 98 . . Volleys Fired 967 | 6 64 21 105 4 60 56 8 21 3 . 5 38 45 71 29 14 22 76 . 15 . 20 89 9 . 36 22 44 1 17 6 15 45 Largest 4 | 2 2 2 3 3 3 3 4 4 4 . 4 4 4 4 4 4 4 4 . 3 . 3 3 1 . 3 1 3 2 3 3 4 4 Hottest 275 | 40 100 100 100 69 69 71 96 96 98 . 98 104 206 221 275 275 275 275 . 114 . 114 161 90 . 166 90 166 70 105 105 143 200 Shots Fired 2671 | 12 120 26 302 12 169 140 26 60 12 . 20 136 102 235 116 52 84 259 2 31 . 48 211 9 1 74 22 128 2 39 18 57 146 Gun 2496 | 12 87 . 294 12 169 138 24 52 12 . 20 136 93 235 116 51 84 258 2 31 . 47 185 . 1 60 1 119 2 39 18 57 141 Cannon 123 | . 24 12 4 . . . . . . . . . . . . 1 . . . . . . 26 9 . 12 21 9 . . . . 5 Launcher 23 | . . 4 1 . . 2 . 8 . . . . 4 . . . . 1 . . . 1 . . . 2 . . . . . . . Special 29 | . 9 10 3 . . . 2 . . . . . 5 . . . . . . . . . . . . . . . . . . . . Kinetic 2018 | 12 111 12 298 12 169 138 24 52 12 . 20 136 49 136 15 . . 119 2 31 . 47 185 . 1 60 1 119 2 39 18 57 141 Thermal 623 | . 9 10 3 . . . . . . . . . 44 99 101 52 84 139 . . . . 26 9 . 12 21 9 . . . . 5 Explosive 23 | . . 4 1 . . 2 . 8 . . . . 4 . . . . 1 . . . 1 . . . 2 . . . . . . . Electromagnetic . | . . . . . . . . . . . . . . . . . . . . . . . . . . . . . . . . . . Robot Hit Streak 25 | 8 5 2 19 2 20 25 14 10 4 . 6 8 20 19 11 6 7 13 2 7 . 5 7 . . 9 . 11 . 7 14 15 23 Robot Miss Streak 9 | 1 3 1 3 5 5 3 1 3 1 . 2 4 4 6 5 4 4 5 . 3 . 7 9 . 1 5 . 5 . 4 1 5 5 Penetration Max 1 | . . . . . . . . . . . . . . 1 . . . 1 . . . . 1 . . 1 . 1 . 1 . . 1 Secondary Targets 54 | . 3 . 4 . 6 6 . 2 . . . 2 3 9 3 . . 6 . . . 1 3 . . . . 3 . . . . 3 Max Gunslinging Chain 2 | . 1 . 1 . 1 1 . 1 . . . 1 1 2 1 . . 2 . . . 1 1 . . . . 1 . . . . 1 Shots Hit Robots 1572 | 10 59 5 188 3 113 94 24 37 7 . 19 70 73 155 71 33 41 142 3 12 16 21 97 . . 38 . 72 2 25 16 29 97 Core Hits 904 | 4 26 8 70 3 50 42 6 20 2 . 8 37 90 86 36 13 20 109 3 5 4 34 59 . . 55 . 39 1 17 7 11 39 Critical Kills 22 | . . . . . 1 . . . . . . . . 1 1 . . 3 . 1 . . 7 . . 1 . 1 . 2 . 1 3 Critical Parts Destroyed 30 | . 1 . 1 . . 1 . 1 . . . . . 3 . . . . . 1 . 1 2 . . 2 . 3 . 2 2 2 8 Critical Strikes 81 | . 1 . 1 . 1 1 2 1 . . . . . 6 4 1 2 8 . 2 2 1 10 . . 3 . 7 . 6 2 3 17 Burn 11 | . . . . . . . . . . . . . . 1 3 1 2 4 . . . . . . . . . . . . . . . Destroy 61 | . 1 . 1 . 1 1 . 1 . . . . . 5 1 . . 4 . 2 . 1 10 . . 3 . 7 . 4 2 2 15 Smash 3 | . . . . . . . . . . . . . . . . . . . . . . . . . . . . . . . . 1 2 Sever 6 | . . . . . . . 2 . . . . . . . . . . . . . 2 . . . . . . . . 2 . . . Melee Attacks 244 | . . . 9 . 1 36 11 . 1 . 8 15 9 11 . . . 7 3 4 16 6 12 . . . 1 11 15 22 13 23 10 Impact 54 | . . . . . . . . . . . . . . . . . . . . . . . . . . . . . . 8 13 23 10 Slashing 190 | . . . 9 . 1 36 11 . 1 . 8 15 9 11 . . . 7 3 4 16 6 12 . . . 1 11 15 14 . . . Piercing . | . . . . . . . . . . . . . . . . . . . . . . . . . . . . . . . . . . Sneak Attacks 28 | . . . . . . . 2 . . . . 2 . 3 . . . . 2 . . 3 4 . . . . 2 1 4 4 1 . Combat Hostiles . | . . . . . . . . . . . . . . . . . . . . . . . . . . . . . . . . . . Follow-up Attacks . | . . . . . . . . . . . . . . . . . . . . . . . . . . . . . . . . . . Damage Inflicted 46406 | 136 827 229 2891 50 1772 1866 546 1125 130 . 499 1451 2799 4136 1940 948 1229 5685 148 338 1022 1296 4060 . . 2645 . 2166 102 1197 741 871 3561 Guns 33244 | 136 667 . 2822 50 1772 1449 327 498 130 . 252 1261 1323 3548 1911 948 1229 3958 25 338 . 446 3016 . . 1190 . 1688 . 761 295 669 2535 Cannons 1052 | . 160 84 69 . . . . . . . . . . . . . . . . . . . 76 . . 335 . 210 . . . . 118 Explosions 7791 | . . 145 . . . 417 . 627 . . . . 1476 402 . . . 1721 . . . 664 721 . . 1120 . . . . . . 498 Melee 4284 | . . . . . . . 219 . . . 247 190 . 186 . . . . 123 . 1022 186 247 . . . . 268 102 436 446 202 410 Ramming 35 | . . . . . . . . . . . . . . . 29 . . 6 . . . . . . . . . . . . . . . Kinetic 24886 | 136 827 84 2891 50 1772 1449 327 498 130 . 252 1261 435 1880 112 . . 1819 25 338 . 446 3016 . . 1190 . 1688 . 761 295 669 2535 Thermal 10735 | . . . . . . . . . . . . . 888 2070 1799 948 1229 2139 . . . . 267 . . 569 . 210 . . . . 616 Explosive 6302 | . . 145 . . . 417 . 627 . . . . 1476 . . . . 1721 . . . 664 366 . . 886 . . . . . . . Electromagnetic 164 | . . . . . . . . . . . . . . . . . . . . . . . 164 . . . . . . . . . . Impact 1058 | . . . . . . . . . . . . . . . . . . . . . . . . . . . . . . . 446 202 410 Slashing 3226 | . . . . . . . 219 . . . 247 190 . 186 . . . . 123 . 1022 186 247 . . . . 268 102 436 . . . Piercing . | . . . . . . . . . . . . . . . . . . . . . . . . . . . . . . . . . . Highest Corruption 20 | . 1 1 . . . . 1 1 2 2 2 3 . 10 10 10 10 10 10 10 10 10 20 20 20 20 2 . . . 1 4 17 Average Corruption 6 | . 1 1 . . . . 1 1 1 2 2 1 . 7 10 10 7 6 10 10 10 10 12 20 20 2 2 . . . 1 3 5 Corruption Purged 15 | . . . . . . . . . . . . 5 . . . . 10 . . . . . . . . . . . . . . . . Corruption Blocked . | . . . . . . . . . . . . . . . . . . . . . . . . . . . . . . . . . . Effects 304 | . 4 2 . . . . . 5 6 . 7 1 . 22 58 19 11 24 13 24 11 18 31 6 9 3 6 . . . . 1 23 Message Errors 64 | . . . . . . . . . 2 . 2 . . 8 11 5 2 6 1 4 3 4 4 2 3 1 . . . . . . 6 Matter Fused 76 | . . 2 . . . . . 2 2 . 3 . . 5 16 4 . 6 3 9 4 5 9 1 1 . 1 . . . . . 3 Heat Flow Errors 22 | . 1 . . . . . . 1 . . . . . . 6 3 . 1 . 2 1 2 1 . 1 . 1 . . . . . 2 Energy Discharges 33 | . 1 . . . . . . . 1 . . . . 1 5 1 2 3 3 4 2 2 1 1 1 1 1 . . . . 1 2 Parts Rejected 4 | . . . . . . . . . . . 1 . . . . . 1 . . . . 1 1 . . . . . . . . . . Parts Fused 3 | . . . . . . . . . . . . . . . 1 . . 1 . . . . 1 . . . . . . . . . . Data Loss (minor) 32 | . . . . . . . . 1 1 . 1 1 . 3 8 . 1 2 4 1 1 1 3 . . 1 . . . . . . 3 Data Loss (major) 17 | . 1 . . . . . . 1 . . . . . 1 4 2 1 1 . 1 . 2 1 . 1 . 1 . . . . . . Misfires 15 | . 1 . . . . . . . . . . . . 1 2 . 1 2 2 2 . . 1 1 1 . 1 . . . . . . Alerts 10 | . . . . . . . . . . . . . . . 1 2 . . . . . 1 3 . . . . . . . . . 3 Misdirections 8 | . . . . . . . . . . . . . . . 2 1 1 1 . . . . 1 . 1 . . . . . . . 1 Weapon Failures 20 | . . . . . . . . . . . . . . 3 2 1 2 1 . 1 . . 5 1 . . 1 . . . . . 3 Overload Shots 7 | . . . . . . . . . . . . . . . . . . 7 . . . . . . . . . . . . . . . Effects 1 | . . . . . . . . . . . . . . . . . . 1 . . . . . . . . . . . . . . . Short Circuit 1 | . . . . . . . . . . . . . . . . . . 1 . . . . . . . . . . . . . . . Overflow Damage 1203 | . 10 . . . . . 4 27 . . 120 . 19 76 19 . . 14 . . 51 68 209 . . 10 . . . 8 295 156 117 Projectiles 10 | . 10 . . . . . . . . . . . . . . . . . . . . . . . . . . . . . . . . Explosions 227 | . . . . . . . . 27 . . . . 19 . . . . 14 . . . 11 146 . . 10 . . . . . . . Melee 966 | . . . . . . . 4 . . . 120 . . 76 19 . . . . . 51 57 63 . . . . . . 8 295 156 117 Knockbacks 8 | . 2 . . . . . . . . . . . . . . . . . . . . . . . . . . . . . 1 1 4 Impact 6 | . . . . . . . . . . . . . . . . . . . . . . . . . . . . . . . 1 1 4 Kinetic 2 | . 2 . . . . . . . . . . . . . . . . . . . . . . . . . . . . . . . . Secondary . | . . . . . . . . . . . . . . . . . . . . . . . . . . . . . . . . . . Self-Inflicted Damage 487 | . . . . . . . . . . . . . 137 23 . . . 225 . . . . 83 . . . . . . . . 19 . Shots 20 | . . . . . . . . . . . . . 7 1 . . . 9 . . . . 2 . . . . . . . . 1 . Rammed . | . . . . . . . . . . . . . . . . . . . . . . . . . . . . . . . . . . Targets Rammed 2 | . . . . . . . . . . . . . . . 1 . . 1 . . . . . . . . . . . . . . . Kicked 2 | . . . . . . . . . . . . . . . 1 . . 1 . . . . . . . . . . . . . . . Crushed . | . . . . . . . . . . . . . . . . . . . . . . . . . . . . . . . . . . Highest Temperature 554 | . 170 112 72 24 308 178 90 318 54 . 27 10 232 341 280 239 204 451 . 295 160 227 121 30 114 370 137 316 . 8 . 45 554 Average Temperature 70 | . 30 36 11 8 121 44 34 105 28 . 10 5 73 102 89 105 49 113 . 82 87 101 32 13 60 108 36 83 . 6 . 17 111 Received Heat Transfer 3825 | . 177 36 408 27 612 486 36 126 45 . 166 81 252 591 120 4 9 111 . 36 . 33 223 . . . . 41 . 13 9 50 133 Effects 18 | . . . . . 3 . . . . . . . . 1 . . . 2 . 3 . . . . . 2 . . . . . . 7 Shutdowns 4 | . . . . . . . . . . . . . . . . . . 2 . . . . . . . . . . . . . . 2 Energy Bleed 2 | . . . . . . . . . . . . . . . . . . . . . . . . . . 1 . . . . . . 1 Interference 7 | . . . . . 2 . . . . . . . . . . . . . . 3 . . . . . . . . . . . . 2 Matter Decay 1 | . . . . . . . . . . . . . . 1 . . . . . . . . . . . . . . . . . . . Short Circuit 2 | . . . . . 1 . . . . . . . . . . . . . . . . . . . . . . . . . . . 1 Damage (minor) 2 | . . . . . . . . . . . . . . . . . . . . . . . . . . 1 . . . . . . 1 Siege Activations . | . . . . . . . . . . . . . . . . . . . . . . . . . . . . . . . . . . Martial Activations 2 | . . . . . . . . . . . . . 2 . . . . . . . . . . . . . . . . . . . . Total Turns 6 | . . . . . . . . . . . . . 6 . . . . . . . . . . . . . . . . . . . . Longest Duration 5 | . . . . . . . . . . . . . 5 . . . . . . . . . . . . . . . . . . . . Shielding Activations . | . . . . . . . . . . . . . . . . . . . . . . . . . . . . . . . . . . Robots Disrupted 2 | . . . . . . . . . . . . . . . . . . . . . . . 2 . . . . . . . . . . Combat Hostiles 2 | . . . . . . . . . . . . . . . . . . . . . . . 2 . . . . . . . . . . Robots Corrupted 4 | . . . . . . . . . . . . . . . 1 . . . . . . . . . . . . . . . 2 1 . Combat Hostiles . | . . . . . . . . . . . . . . . . . . . . . . . . . . . . . . . . . . Parts Fried 13 | . . . . . . . . . . . . . . . 3 . . . . . . . 1 . . 1 . . . . 5 3 . Impact Corruptions 16 | . . . . . . . . . . . . . . . 1 . . . . . . . . . . . . . . . 7 5 3 Robots Melted 5 | . . . . . . . . . . . . . . 1 . 3 . 1 . . . . . . . . . . . . . . . Combat Hostiles 5 | . . . . . . . . . . . . . . 1 . 3 . 1 . . . . . . . . . . . . . . . Parts Melted 34 | . . . . . . . . . . . . . . 3 9 9 4 8 . . . . . . . . . . . . . . 1 Heat Transferred 15969 | . . . . . . . . . . . . . 2025 3864 3043 1238 1887 3306 . . . . 100 . . 150 . . . . . . 356 Parts Sabotaged . | . . . . . . . . . . . . . . . . . . . . . . . . . . . . . . . . . . Parts Stolen . | . . . . . . . . . . . . . . . . . . . . . . . . . . . . . . . . . . Parts Stripped . | . . . . . . . . . . . . . . . . . . . . . . . . . . . . . . . . . . Power Chain Reactions 1 | . . . . . . . . . . . . . . . . . . . . . . . . . . 1 . . . . . . . Alert | -11 -10 -10 -9 -9 -8 -8 -7 -7 -7 -7 -6 -6 -6 -6 -6 -6 -6 -5 -5 -5 -5 -4 -4 -4 -4 -4 -3 -3 -3 -2 -2 -1 -1 ------- Run | Yrd Mat Min Mat Min Mat Gar Fac Low Low Dat Pro Fac Gar Fac Ext Cet Arc Fac Upp Upp Zhi Pro Fac Upp Upp War Pro Res Tes Res Qua Acc Com Maximum Alert Level 4 | . . . 2 1 1 4 3 . . . . . 3 2 1 1 1 2 . . . . 3 . . . . 1 . 1 . . . Low Security (%) 50 | 100 100 100 27 42 72 9 . . . . . 100 4 . 38 2 30 70 . . . . 21 . . . . 60 100 57 100 100 100 Level 1 26 | . . . 45 57 27 15 . . . . . . 11 60 61 97 69 4 . . . . 41 . . . . 39 . 42 . . . Level 2 14 | . . . 26 . . 10 74 . . . . . 69 39 . . . 24 . . . . 5 . . . . . . . . . . Level 3 6 | . . . . . . 40 25 . . . . . 14 . . . . . . . . . 30 . . . . . . . . . . Level 4 1 | . . . . . . 23 . . . . . . . . . . . . . . . . . . . . . . . . . . . Level 5 . | . . . . . . . . . . . . . . . . . . . . . . . . . . . . . . . . . . High Security . | . . . . . . . . . . . . . . . . . . . . . . . . . . . . . . . . . . Max Security . | . . . . . . . . . . . . . . . . . . . . . . . . . . . . . . . . . . Peak Influence 1356 | 10 85 94 439 256 253 1356 733 . . . . 184 775 625 397 333 273 680 . . . . 989 . . . . 302 150 290 162 138 133 Initial 711 | . . 10 . 166 76 126 711 . . . . 33 119 406 286 204 104 54 . . . . 95 . . . . . 150 29 106 88 64 Average 263 | . 28 32 257 198 142 789 651 . . . . 45 514 397 228 280 218 200 . . . . 445 . . . . 163 102 122 117 58 58 Influence Increases 13714 | 15 399 162 1021 200 597 1410 112 210 30 . 120 406 776 791 867 338 279 1389 5 60 15 210 1498 . 24 732 . 554 133 446 181 373 361 Destroy 0b10 Robot/C 6720 | . 260 100 560 140 340 680 40 200 20 . 40 260 480 440 520 160 80 600 . 60 . 180 480 . 20 480 . 240 . 40 20 60 220 Destroy 0b10 Robot/NC 700 | 15 25 5 110 . 70 . 5 . . . 10 20 10 95 55 10 35 75 5 . 15 . 50 . . 5 . 25 . 20 20 15 5 Destroy Leader 1146 | . 56 20 180 20 86 30 22 10 10 . 10 64 30 134 54 . . 144 . . . 30 92 . . . . 64 . 14 12 22 42 Allied During Kill 984 | . . . . 25 2 110 . . . . . . . . 175 157 115 209 . . . . . . 4 187 . . . . . . . Successful Hack 203 | . 5 5 26 . 21 14 12 . . . . 5 . . 6 . . . . . . . 13 . . . . 39 27 . 3 27 . Disable Machine 780 | . . . 15 . 15 30 30 . . . . 15 15 75 30 . 45 135 . . . . 240 . . . . 15 60 15 . 15 30 Anti-Garrison Action 900 | . . . . . . 450 . . . . . . 150 . . . . . . . . . 150 . . . . . . 150 . . . Destroy Structure 1111 | . 8 32 25 . 3 66 3 . . . . 12 61 32 12 11 4 166 . . . . 398 . . . . 66 16 27 21 114 34 Partial Spotted 195 | . . . 15 . 15 . . . . . . . . . . . . 30 . . . . . . . . . 30 15 15 30 15 30 Lose Combat Pursuer 975 | . 45 . 90 15 45 30 . . . . 60 30 30 15 15 . . 30 . . . . 75 . . 60 . 75 15 165 75 105 . Influence Decreases 13705 | 15 372 189 592 433 598 249 875 490 251 92 66 290 171 981 1087 443 382 872 421 318 15 58 665 425 217 628 471 286 348 309 224 418 454 Entered New Map 4638 | . . 17 . 263 120 69 645 220 61 92 . 21 51 369 299 161 156 103 251 50 . . 57 365 107 367 471 . 118 24 84 59 38 Time Decay 7494 | 15 362 172 562 170 368 . 230 230 190 . 66 259 . 422 518 222 206 580 170 268 15 58 478 60 90 211 . 284 230 285 140 339 294 Lost Part 862 | . 10 . 30 . 70 40 . 40 . . . 10 100 190 30 . . 60 . . . . 130 . . 10 . . . . . 20 122 Lost Ally 711 | . . . . . 40 140 . . . . . . 20 . 240 60 20 129 . . . . . . 20 40 . 2 . . . . . Squads Dispatched 61 | . 2 . 3 . 2 . 2 . . . . 4 . 6 1 . . 7 . . . . 10 . . . . 9 1 1 4 6 3 Investigation 9 | . 2 . 1 . 1 . . . . . . 1 . . . . . 1 . . . . . . . . . 2 . . . 1 . Extermination 17 | . . . . . . . 1 . . . . 2 . 1 . . . 3 . . . . 3 . . . . . 1 . 1 2 3 Reinforcement 25 | . . . 2 . 1 . . . . . . 1 . 1 1 . . 2 . . . . 3 . . . . 7 . 1 3 3 . Assault 5 | . . . . . . . . . . . . . . . . . . 1 . . . . 4 . . . . . . . . . . Garrison 5 | . . . . . . . 1 . . . . . . 4 . . . . . . . . . . . . . . . . . . . Intercept . | . . . . . . . . . . . . . . . . . . . . . . . . . . . . . . . . . . Searches Triggered . | . . . . . . . . . . . . . . . . . . . . . . . . . . . . . . . . . . Construction Impeded 1 | . . . . . . . . . . . . . . . . . . 1 . . . . . . . . . . . . . . . Haulers Reinforced 7 | . . . . . . . . . . . . . . 1 . . . . . . . . 1 . . . . 3 . 1 1 . . Active Scanning Responses . | . . . . . . . . . . . . . . . . . . . . . . . . . . . . . . . . . . Cargo Convoy Interrupts 2 | . . . . . . . . . . . . . . 1 . . . 1 . . . . . . . . . . . . . . . Stealth | -11 -10 -10 -9 -9 -8 -8 -7 -7 -7 -7 -6 -6 -6 -6 -6 -6 -6 -5 -5 -5 -5 -4 -4 -4 -4 -4 -3 -3 -3 -2 -2 -1 -1 --------- Run | Yrd Mat Min Mat Min Mat Gar Fac Low Low Dat Pro Fac Gar Fac Ext Cet Arc Fac Upp Upp Zhi Pro Fac Upp Upp War Pro Res Tes Res Qua Acc Com Distress Signals 33 | . . . 2 . 5 . . . . . . . . . 5 2 . 2 . . . . . . . . . 4 1 8 1 2 1 Communications Jammed 83 | . . . . . . . . . . . . . . . . . . . . . . . 52 . . . . . 1 . . 29 1 Distress Signals 82 | . . . . . . . . . . . . . . . . . . . . . . . 51 . . . . . 1 . . 29 1 Times Spotted 586 | . 25 1 39 8 30 32 2 10 5 . 6 16 27 25 27 11 19 40 . 3 . 9 45 . 1 87 . 24 8 21 10 23 32 Peak Tracking Total 12 | . 5 3 4 4 11 8 1 4 4 . 3 4 7 7 5 5 2 12 . 3 . 8 7 . 1 11 . 6 7 7 3 10 8 Tactical Retreats 40 | . 2 . 4 1 2 1 . . . . 2 1 2 1 1 . . 2 . . . . 4 . . 3 . 2 1 5 2 4 . Traps | -11 -10 -10 -9 -9 -8 -8 -7 -7 -7 -7 -6 -6 -6 -6 -6 -6 -6 -5 -5 -5 -5 -4 -4 -4 -4 -4 -3 -3 -3 -2 -2 -1 -1 ------- Run | Yrd Mat Min Mat Min Mat Gar Fac Low Low Dat Pro Fac Gar Fac Ext Cet Arc Fac Upp Upp Zhi Pro Fac Upp Upp War Pro Res Tes Res Qua Acc Com Traps Triggered 32 | . 3 . 1 . 1 3 1 . . . . 4 3 2 4 . . 1 . . . . 3 . . 1 . . 2 . . 1 2 Indirectly . | . . . . . . . . . . . . . . . . . . . . . . . . . . . . . . . . . . Trap Hack Attempts . | . . . . . . . . . . . . . . . . . . . . . . . . . . . . . . . . . . Triggered . | . . . . . . . . . . . . . . . . . . . . . . . . . . . . . . . . . . Disarmed . | . . . . . . . . . . . . . . . . . . . . . . . . . . . . . . . . . . Reprogrammed . | . . . . . . . . . . . . . . . . . . . . . . . . . . . . . . . . . . Reused . | . . . . . . . . . . . . . . . . . . . . . . . . . . . . . . . . . . Traps Extracted . | . . . . . . . . . . . . . . . . . . . . . . . . . . . . . . . . . . Installed . | . . . . . . . . . . . . . . . . . . . . . . . . . . . . . . . . . . Triggered . | . . . . . . . . . . . . . . . . . . . . . . . . . . . . . . . . . . Machines | -11 -10 -10 -9 -9 -8 -8 -7 -7 -7 -7 -6 -6 -6 -6 -6 -6 -6 -5 -5 -5 -5 -4 -4 -4 -4 -4 -3 -3 -3 -2 -2 -1 -1 ---------- Run | Yrd Mat Min Mat Min Mat Gar Fac Low Low Dat Pro Fac Gar Fac Ext Cet Arc Fac Upp Upp Zhi Pro Fac Upp Upp War Pro Res Tes Res Qua Acc Com Machines Disabled 65 | . . . 1 . 1 8 2 . . . . 1 2 5 4 . 3 9 . . . . 17 . . 1 1 1 4 2 . 1 2 Max in Single Turn 4 | . . . 1 . 1 1 1 . . . . 1 1 4 1 . 1 1 . . . . 4 . . 1 1 1 1 1 . 1 1 Garrison Access 5 | . . . . . . . . . . . . . . . . . . . . . . . 1 . . . . . . 3 . 1 . Garrison Relay 7 | . . . . . . 6 . . . . . . 1 . . . . . . . . . . . . . . . . . . . . Energy Cycler 2 | . . . . . . . . . . . . . . . 2 . . . . . . . . . . . . . . . . . . Machines Repaired . | . . . . . . . . . . . . . . . . . . . . . . . . . . . . . . . . . . Machines Dismantled . | . . . . . . . . . . . . . . . . . . . . . . . . . . . . . . . . . . Machines Sabotaged . | . . . . . . . . . . . . . . . . . . . . . . . . . . . . . . . . . . Overloaded Fab Kills . | . . . . . . . . . . . . . . . . . . . . . . . . . . . . . . . . . . Hacking | -11 -10 -10 -9 -9 -8 -8 -7 -7 -7 -7 -6 -6 -6 -6 -6 -6 -6 -5 -5 -5 -5 -4 -4 -4 -4 -4 -3 -3 -3 -2 -2 -1 -1 --------- Run | Yrd Mat Min Mat Min Mat Gar Fac Low Low Dat Pro Fac Gar Fac Ext Cet Arc Fac Upp Upp Zhi Pro Fac Upp Upp War Pro Res Tes Res Qua Acc Com Machines Accessed 92 | . 4 1 9 . 4 4 3 . . 4 1 6 3 4 1 1 . 5 2 1 7 . 4 . 2 3 1 4 7 2 3 4 2 Terminals 52 | . 3 1 7 . 3 4 2 . . . 1 . 3 3 1 1 . 2 1 . . . 4 . . . . 2 5 1 3 3 2 Fabricators 3 | . . . . . . . 1 . . . . 2 . . . . . . . . . . . . . . . . . . . . . Repair Stations 1 | . . . . . . . . . . . . . . . . . . . . . . . . . . . . 1 . . . . . Recycling Units 6 | . 1 . . . . . . . . . . 2 . . . . . 3 . . . . . . . . . . . . . . . Scanalyzers 5 | . . . 2 . . . . . . . . 1 . . . . . . . . . . . . . . . 1 1 . . . . Garrison Access 6 | . . . . . 1 . . . . . . 1 . 1 . . . . . . . . . . . . . . 1 1 . 1 . Total Hacks 231 | . 7 2 15 . 7 6 9 . . 32 1 13 4 6 3 1 . 9 2 1 46 . 8 . 5 12 1 8 12 3 8 8 2 Successful 144 | . 2 1 8 . 3 1 2 . . 32 1 7 . 1 1 . . 2 2 1 46 . 2 . 5 12 1 3 4 . 1 5 1 Failed 86 | . 5 1 6 . 4 5 7 . . . . 6 4 5 2 1 . 7 . . . . 6 . . . . 5 8 3 7 3 1 Catastrophic 21 | . . . 3 . 3 3 . . . . . 1 1 2 . 1 . 4 . . . . 1 . . . . 1 1 . . . . Database Lockouts 1 | . . . 1 . . . . . . . . . . . . . . . . . . . . . . . . . . . . . . Manual 36 | . . . 6 . 2 . 3 . . . . . . 1 3 1 . 2 . . . . 7 . . 1 . . 3 1 . 4 2 Terminals 87 | . 6 2 11 . 6 6 5 . . . 1 . 4 4 3 1 . 2 1 . . . 8 . . . . 2 7 1 8 7 2 Fabricators 8 | . . . . . . . 4 . . . . 4 . . . . . . . . . . . . . . . . . . . . . Repair Stations 3 | . . . . . . . . . . . . . . . . . . . . . . . . . . . . 3 . . . . . Recycling Units 12 | . 1 . . . . . . . . . . 4 . . . . . 7 . . . . . . . . . . . . . . . Scanalyzers 13 | . . . 4 . . . . . . . . 3 . . . . . . . . . . . . . . . 3 3 . . . . Garrison Access 10 | . . . . . 1 . . . . . . 2 . 2 . . . . . . . . . . . . . . 2 2 . 1 . Terminal Hacks 120 | . 1 1 4 . 2 1 1 . . 32 1 . . 1 . . . . 2 1 46 . 1 . 5 12 1 1 2 . 1 3 1 Record 52 | . . . . . . . . . . 11 1 . . . . . . . 1 . 34 . . . 4 . 1 . . . . . . Part Schematic 17 | . . . . . . . . . . 13 . . . . . . . . . . 4 . . . . . . . . . . . . Robot Schematic 5 | . . . . . . . . . . 5 . . . . . . . . . . . . . . . . . . . . . . . Robot Analysis 4 | . . . . . . . . . . . . . . . . . . . . . 4 . . . . . . . . . . . . Prototype ID Bank 18 | . . . . . . . . . . 3 . . . . . . . . . . 4 . . . . 11 . . . . . . . Open Door 6 | . . . . . . . . . . . . . . 1 . . . . 1 1 . . . . 1 1 . . . . . . 1 Level Access Points 1 | . . . . . . . . . . . . . . . . . . . . . . . . . . . . . . . . 1 . Branch Access Points 2 | . . . . . . . . . . . . . . . . . . . . . . . 1 . . . . . . . . 1 . Emergency Access Points 1 | . . . . . . 1 . . . . . . . . . . . . . . . . . . . . . . . . . . . Locate Traps 1 | . . . 1 . . . . . . . . . . . . . . . . . . . . . . . . . . . . . . Hauler Manifests 2 | . 1 . 1 . . . . . . . . . . . . . . . . . . . . . . . . . . . . . . Registered Components 3 | . . . 1 . 1 . . . . . . . . . . . . . . . . . . . . . . 1 . . . . . Zone Layout 8 | . . 1 1 . 1 . 1 . . . . . . . . . . . . . . . . . . . . . 2 . 1 1 . Fabricator Hacks 3 | . . . . . . . . . . . . 3 . . . . . . . . . . . . . . . . . . . . . Network Status 1 | . . . . . . . . . . . . 1 . . . . . . . . . . . . . . . . . . . . . Load Schematic 1 | . . . . . . . . . . . . 1 . . . . . . . . . . . . . . . . . . . . . Build 1 | . . . . . . . . . . . . 1 . . . . . . . . . . . . . . . . . . . . . Repair Station Hacks 1 | . . . . . . . . . . . . . . . . . . . . . . . . . . . . 1 . . . . . Scan Component 1 | . . . . . . . . . . . . . . . . . . . . . . . . . . . . 1 . . . . . Recycling Unit Hacks 6 | . 1 . . . . . . . . . . 3 . . . . . 2 . . . . . . . . . . . . . . . Report Inventory 4 | . . . . . . . . . . . . 2 . . . . . 2 . . . . . . . . . . . . . . . Retrieve Components 2 | . 1 . . . . . . . . . . 1 . . . . . . . . . . . . . . . . . . . . . Scanalyzer 5 | . . . 3 . . . . . . . . . . . . . . . . . . . . . . . . 1 1 . . . . Insert Component 1 | . . . 1 . . . . . . . . . . . . . . . . . . . . . . . . . . . . . . Retrieve Study 4 | . . . 2 . . . . . . . . . . . . . . . . . . . . . . . . 1 1 . . . . Garrison Access Hacks 3 | . . . . . 1 . . . . . . 1 . . . . . . . . . . . . . . . . . . . 1 . Unlock Access 2 | . . . . . 1 . . . . . . 1 . . . . . . . . . . . . . . . . . . . . . Seal Access 1 | . . . . . . . . . . . . . . . . . . . . . . . . . . . . . . . . 1 . Unauthorized Hacks 6 | . . . 1 . . . 1 . . . . . . . 1 . . . . . . . 1 . . . . . 1 . . 1 . Terminals 5 | . . . 1 . . . . . . . . . . . 1 . . . . . . . 1 . . . . . 1 . . 1 . Assimilate 1 | . . . . . . . . . . . . . . . 1 . . . . . . . . . . . . . . . . . . Botnet 4 | . . . 1 . . . . . . . . . . . . . . . . . . . 1 . . . . . 1 . . 1 . Fabricators 1 | . . . . . . . 1 . . . . . . . . . . . . . . . . . . . . . . . . . . Liberate 1 | . . . . . . . 1 . . . . . . . . . . . . . . . . . . . . . . . . . . Repair Stations . | . . . . . . . . . . . . . . . . . . . . . . . . . . . . . . . . . . Recycling Units . | . . . . . . . . . . . . . . . . . . . . . . . . . . . . . . . . . . Scanalyzers . | . . . . . . . . . . . . . . . . . . . . . . . . . . . . . . . . . . Garrison Access . | . . . . . . . . . . . . . . . . . . . . . . . . . . . . . . . . . . Data Cores Recovered 2 | . . . 1 . . . . . . . . . . . . . . . . . . . . . . . . 1 . . . . . Used . | . . . . . . . . . . . . . . . . . . . . . . . . . . . . . . . . . . Hacking Detections 58 | . 2 . 6 . 3 3 3 . . . 1 5 3 4 . 1 . 3 . . . . 4 . . . . 4 7 2 3 3 1 Full Trace Events 6 | . . . 1 . . 1 . . . . . 1 . . . . . 1 . . . . . . . . . 1 . . . 1 . Feedback Events . | . . . . . . . . . . . . . . . . . . . . . . . . . . . . . . . . . . Feedback Blocked . | . . . . . . . . . . . . . . . . . . . . . . . . . . . . . . . . . . Robot Schematics Acquired 5 | . . . . . . . . . . 5 . . . . . . . . . . . . . . . . . . . . . . . Robots Built . | . . . . . . . . . . . . . . . . . . . . . . . . . . . . . . . . . . Authchips . | . . . . . . . . . . . . . . . . . . . . . . . . . . . . . . . . . . Time . | . . . . . . . . . . . . . . . . . . . . . . . . . . . . . . . . . . Total Robot Build Rating . | . . . . . . . . . . . . . . . . . . . . . . . . . . . . . . . . . . Part Schematics Acquired 19 | . . . . . . . . . . 13 . . . . . . . . . . 4 . . . . . . . . . 2 . . Parts Built 1 | . . . . . . . . . . . . 1 . . . . . . . . . . . . . . . . . . . . . Authchips . | . . . . . . . . . . . . . . . . . . . . . . . . . . . . . . . . . . Time 152 | . . . . . . . . . . . . 152 . . . . . . . . . . . . . . . . . . . . . Total Part Build Rating 5 | . . . . . . . . . . . . 5 . . . . . . . . . . . . . . . . . . . . . Part Studies Acquired 4 | . . . 2 . . . . . . . . . . . . . . . . . . . . . . . . 1 1 . . . . Parts Repaired . | . . . . . . . . . . . . . . . . . . . . . . . . . . . . . . . . . . Time . | . . . . . . . . . . . . . . . . . . . . . . . . . . . . . . . . . . Parts Recycled . | . . . . . . . . . . . . . . . . . . . . . . . . . . . . . . . . . . Recycled Matter . | . . . . . . . . . . . . . . . . . . . . . . . . . . . . . . . . . . Retrieved Matter . | . . . . . . . . . . . . . . . . . . . . . . . . . . . . . . . . . . Retrieved Components 5 | . 2 . . . . . . . . . . 3 . . . . . . . . . . . . . . . . . . . . . Parts Scanalyzed . | . . . . . . . . . . . . . . . . . . . . . . . . . . . . . . . . . . Part Schematics Acquired . | . . . . . . . . . . . . . . . . . . . . . . . . . . . . . . . . . . Parts Damaged . | . . . . . . . . . . . . . . . . . . . . . . . . . . . . . . . . . . Bothacking | -11 -10 -10 -9 -9 -8 -8 -7 -7 -7 -7 -6 -6 -6 -6 -6 -6 -6 -5 -5 -5 -5 -4 -4 -4 -4 -4 -3 -3 -3 -2 -2 -1 -1 ------------ Run | Yrd Mat Min Mat Min Mat Gar Fac Low Low Dat Pro Fac Gar Fac Ext Cet Arc Fac Upp Upp Zhi Pro Fac Upp Upp War Pro Res Tes Res Qua Acc Com Used RIF Installer . | . . . . . . . . . . . . . . . . . . . . . . . . . . . . . . . . . . Robots Hacked 1 | . . . . . . . 1 . . . . . . . . . . . . . . . . . . . . . . . . . . Non-combat 1 | . . . . . . . 1 . . . . . . . . . . . . . . . . . . . . . . . . . . Combat . | . . . . . . . . . . . . . . . . . . . . . . . . . . . . . . . . . . Robot Hacks Applied 1 | . . . . . . . 1 . . . . . . . . . . . . . . . . . . . . . . . . . . find_chute 1 | . . . . . . . 1 . . . . . . . . . . . . . . . . . . . . . . . . . . Relay Couplers Released 35 | . . . . . . 27 . . . . . . 5 . . . . . . . . . 1 . . . . . . 2 . . . Machine Destruction 31 | . . . . . . 23 . . . . . . 5 . . . . . . . . . 1 . . . . . . 2 . . . Programmers 4 | . . . . . . 4 . . . . . . . . . . . . . . . . . . . . . . . . . . . Fabnet Peak Effective % . | . . . . . . . . . . . . . . . . . . . . . . . . . . . . . . . . . . Robots Rewired 25 | . . . . . . 6 . . . . . . 1 . 13 . . . . . . . . . . 5 . . . . . . . Allies Hacked . | . . . . . . . . . . . . . . . . . . . . . . . . . . . . . . . . . . Hacks Repelled . | . . . . . . . . . . . . . . . . . . . . . . . . . . . . . . . . . . Allies | -11 -10 -10 -9 -9 -8 -8 -7 -7 -7 -7 -6 -6 -6 -6 -6 -6 -6 -5 -5 -5 -5 -4 -4 -4 -4 -4 -3 -3 -3 -2 -2 -1 -1 -------- Run | Yrd Mat Min Mat Min Mat Gar Fac Low Low Dat Pro Fac Gar Fac Ext Cet Arc Fac Upp Upp Zhi Pro Fac Upp Upp War Pro Res Tes Res Qua Acc Com Total Allies 48 | . . . . 3 . 7 . . . . . . 1 . 25 5 . . . . . . . . 2 5 . . . . . . . Largest Group 14 | . . . . 3 3 6 . . . . . . 1 . 9 14 10 9 . . . . . . 2 5 2 2 . . . . . Highest-Rated Group 853 | . . . . 40 40 90 . . . . . . 85 . 390 853 547 518 . . . . . . 67 274 95 95 . . . . . Highest-Rated Ally 159 | . . . . 16 16 20 . . . . . . 85 . 159 159 96 96 . . . . . . 38 64 56 56 . . . . . Initial Warlord ECA Mod 15 | . . . . . . . 11 11 11 11 10 10 10 15 15 15 15 14 14 14 14 13 13 13 13 13 12 12 12 11 11 10 10 Total Orders 6 | . . . . . . . . . . . . . . . . . . . . . . . . . . 6 . . . . . . . STAY 5 | . . . . . . . . . . . . . . . . . . . . . . . . . . 5 . . . . . . . FOLLOW 1 | . . . . . . . . . . . . . . . . . . . . . . . . . . 1 . . . . . . . Ally Attacks 388 | . . . . 17 6 65 . . . . . . 2 . 102 80 32 41 . . . . . . 2 40 . 1 . . . . . Total Damage 9276 | . . . . 170 30 1387 . . . . . . 134 . 1993 2024 992 1005 . . . . . . 111 1406 . 24 . . . . . Kills 73 | . . . . 4 1 17 . . . . . . . . 21 7 4 9 . . . . . . 1 9 . . . . . . . Allies Corrupted 2 | . . . . . 1 . . . . . . . . . 1 . . . . . . . . . . . . . . . . . . Allies Melted 3 | . . . . . . . . . . . . . 1 . . . . . . . . . . . . 1 . . . 1 . . . Intel | -11 -10 -10 -9 -9 -8 -8 -7 -7 -7 -7 -6 -6 -6 -6 -6 -6 -6 -5 -5 -5 -5 -4 -4 -4 -4 -4 -3 -3 -3 -2 -2 -1 -1 ------- Run | Yrd Mat Min Mat Min Mat Gar Fac Low Low Dat Pro Fac Gar Fac Ext Cet Arc Fac Upp Upp Zhi Pro Fac Upp Upp War Pro Res Tes Res Qua Acc Com Active Infowar (turns) 18365 | 24 1135 415 533 200 314 . 356 464 395 103 648 1458 1408 561 420 . . 1374 352 493 269 399 1231 128 195 781 355 611 485 1507 289 786 676 Optics 3032 | . . . . . . . . . . . . 1257 1408 367 . . . . . . . . . . . . . . . . . . . Sensors 13083 | . . . . . . . 356 464 395 103 648 1330 . 561 420 . . 1373 352 493 251 389 975 128 195 778 355 552 485 1406 289 785 . Seismic 2621 | 24 1135 415 533 200 314 . . . . . . . . . . . . . . . . . . . . . . . . . . . . Decoding 2 | . . . . . . . . . . . . . . . . . . . . . . . . . . . 2 . . . . . . T.N.C. 1 | . . . . . . . . . . . . . . . . . . 1 . . . . . . . . . . . . . . . Machine Analysis 735 | . . . . . . . . . . . . . . . . . . . . . . . . . 53 682 . . . . . . . Triangulation 327 | . . . . . . . . . . . . 137 190 . . . . . . . . . . . . . . . . . . . . Cloaking 1 | . . . . . . . . . . . . . . . . . . . . . . . . . . 1 . . . . . . . Jamming 4295 | . . . . . . . . . . . . . . . . . . . . . 18 10 1222 128 195 215 . 296 237 276 244 778 676 Robot Analysis Total 4 | . . . . . . . . . . . . . . . . . . . . . 4 . . . . . . . . . . . . Derelict Logs Recovered 8 | . . 2 . 1 . . . . 1 . 1 . . . . . . . 2 . . 1 . . . . . . . . . . . Drone Launches . | . . . . . . . . . . . . . . . . . . . . . . . . . . . . . . . . . . Drone Recoveries . | . . . . . . . . . . . . . . . . . . . . . . . . . . . . . . . . . . Exploration | -11 -10 -10 -9 -9 -8 -8 -7 -7 -7 -7 -6 -6 -6 -6 -6 -6 -6 -5 -5 -5 -5 -4 -4 -4 -4 -4 -3 -3 -3 -2 -2 -1 -1 ------------- Run | Yrd Mat Min Mat Min Mat Gar Fac Low Low Dat Pro Fac Gar Fac Ext Cet Arc Fac Upp Upp Zhi Pro Fac Upp Upp War Pro Res Tes Res Qua Acc Com Turns Passed 26408 | 87 1135 415 2401 340 853 1566 494 498 395 103 676 1458 1408 1032 1436 467 424 1875 352 597 269 499 1231 128 195 1102 356 750 488 1507 289 832 750 Spaces Moved 20702 | 49 748 280 1544 280 493 973 300 371 287 88 347 773 802 547 799 179 134 1136 281 427 175 315 834 199 318 1123 338 863 842 2746 417 962 732 Core 14 | 4 . . . . 8 . . . . . . . . . . . . . . . . . . . . . . . . . . . 2 Treads 2 | . . . . . 2 . . . . . . . . . . . . . . . . . . . . . . . . . . . . Legs 11756 | 45 748 280 1544 280 446 973 300 371 287 88 347 773 802 547 799 179 134 1136 281 427 175 315 479 . . . . . . . . . . Wheels 37 | . . . . . 37 . . . . . . . . . . . . . . . . . . . . . . . . . . . . Hover 8893 | . . . . . . . . . . . . . . . . . . . . . . . 355 199 318 1123 338 863 842 2746 417 962 730 Flight . | . . . . . . . . . . . . . . . . . . . . . . . . . . . . . . . . . . Fastest Speed 29 | 50 120 120 105 105 105 105 108 111 111 111 111 116 110 115 120 120 120 120 120 120 120 120 40 53 53 47 47 47 30 46 46 29 38 Average Speed 87 | 114 120 120 106 105 119 107 136 111 111 111 114 118 124 123 120 120 120 120 120 120 120 120 91 53 53 48 47 56 46 46 46 46 55 Slowest Speed 600 | 120 190 120 120 105 600 108 181 113 111 111 118 122 232 195 193 120 120 120 120 120 120 190 190 53 53 107 47 107 47 46 46 53 400 Overloaded Moves 99 | . . . . . . . . . . . . . 3 . . . . . . . . . 44 . . . . . 23 . . 16 13 Propulsion Burnouts . | . . . . . . . . . . . . . . . . . . . . . . . . . . . . . . . . . . Robots Hopped . | . . . . . . . . . . . . . . . . . . . . . . . . . . . . . . . . . . Potential Cave-ins 8 | . . . . . . . . . . . . . . . . . . . . . . . . 4 . . 2 . . . . 2 . Cave-ins Triggered . | . . . . . . . . . . . . . . . . . . . . . . . . . . . . . . . . . . Exploration Rate (%) 52 | 3 94 44 92 76 49 87 8 60 55 68 52 13 79 14 84 56 83 19 53 67 62 54 28 41 44 83 48 26 77 77 34 28 26 Regions Visited 33 Branch Regions 20 Pre-discovered Areas 10 | . . 2 . . . . . 1 . 1 1 . . . . . . . . . 3 1 . . 1 . . . . . . . . Known Exits Taken 28 | . . . 1 1 1 . 1 1 1 1 1 1 . 1 1 1 1 1 1 1 1 1 1 1 1 1 1 1 1 1 1 1 . Unknown Exits Taken 3 | 1 1 1 . . . . . . . . . . . . . . . . . . . . . . . . . . . . . . . Scrap Searched 15 | . . . . 1 . . . 4 . . 1 . . . . . . . 3 2 . . . . 3 . 1 . . . . . . Spaces Dug 179 | . 6 7 12 . 1 . 3 . 1 . 4 10 . 13 . 1 . 8 1 14 . 4 25 3 . . 12 6 8 10 7 18 5 Terrain Destroyed 962 | . 9 46 20 . 1 6 3 26 1 . 4 13 105 35 10 4 3 91 3 34 . 56 267 9 . 65 23 41 8 11 7 44 17 Melee 103 | . . . 9 . 1 . 3 . 1 . 4 10 . 7 . . . 7 1 4 . 3 7 . . . . 5 8 8 7 15 3 Projectile 408 | . 9 10 3 . . . . . . . . 3 3 9 10 4 3 59 2 30 . 42 128 9 . 8 23 35 . 2 . 5 11 AOE 446 | . . 36 8 . . 6 . 26 . . . . 102 19 . . . 25 . . . 11 132 . . 57 . . . . . 23 1 Terrain Rammed . | . . . . . . . . . . . . . . . . . . . . . . . . . . . . . . . . . . Walls Destroyed . | . . . . . . . . . . . . . . . . . . . . . . . . . . . . . . . . . . Machines Disabled . | . . . . . . . . . . . . . . . . . . . . . . . . . . . . . . . . . . Actions | -11 -10 -10 -9 -9 -8 -8 -7 -7 -7 -7 -6 -6 -6 -6 -6 -6 -6 -5 -5 -5 -5 -4 -4 -4 -4 -4 -3 -3 -3 -2 -2 -1 -1 --------- Run | Yrd Mat Min Mat Min Mat Gar Fac Low Low Dat Pro Fac Gar Fac Ext Cet Arc Fac Upp Upp Zhi Pro Fac Upp Upp War Pro Res Tes Res Qua Acc Com Total 26464 | 64 846 311 2061 317 627 1327 353 420 357 93 603 1209 1106 703 1192 397 342 1464 293 478 209 383 1096 210 343 1608 506 1007 913 2924 476 1268 958 Wait 3420 | . 3 1 323 32 33 160 12 12 64 . 234 330 199 28 194 180 181 149 3 26 . 30 97 3 24 334 139 53 30 107 36 255 148 Move 20668 | 48 747 279 1543 279 493 972 299 370 286 87 346 772 799 546 798 178 133 1135 280 426 174 314 833 198 317 1122 337 862 841 2745 416 961 732 Hop . | . . . . . . . . . . . . . . . . . . . . . . . . . . . . . . . . . . Pick Up 141 | 2 8 . 17 . 15 2 2 4 1 . . 6 10 9 6 2 . 16 3 . 1 1 7 . 1 6 1 4 3 9 . . 5 Fast Attach 188 | 7 3 . 6 . 7 3 5 1 . 3 3 12 6 9 7 9 4 25 . 2 9 3 21 . 1 14 2 8 9 5 1 . 3 Attach 94 | . . . 7 1 8 4 2 4 . . . 7 7 12 5 . . 8 . . . 1 7 . . 6 1 . . 1 . 4 9 Detach 21 | . . . 1 . 1 1 1 . . . . 3 1 . 1 . . 3 . . . . . . . 7 . . . . . . 2 Swap 207 | 1 12 8 23 . 2 22 7 7 1 . 4 10 12 12 9 2 . 13 1 4 1 6 7 . . 7 1 12 2 7 3 9 2 Drop 236 | . 9 2 27 1 7 4 6 1 1 3 3 16 6 5 11 12 2 31 3 1 8 2 14 . . 19 2 13 12 11 1 1 2 Fire 967 | 6 64 21 105 4 60 56 8 21 3 . 5 38 45 71 29 14 22 76 . 15 . 20 89 9 . 36 22 44 1 17 6 15 45 Melee 244 | . . . 9 . 1 36 11 . 1 . 8 15 9 11 . . . 7 3 4 16 6 12 . . . 1 11 15 22 13 23 10 Ram . | . . . . . . . . . . . . . . . . . . . . . . . . . . . . . . . . . . Kick 2 | . . . . . . . . . . . . . . . 1 . . 1 . . . . . . . . . . . . . . . Crush . | . . . . . . . . . . . . . . . . . . . . . . . . . . . . . . . . . . Escape Stasis 46 | . . . . . . 15 . . . . . . 10 . 15 . . . . . . . 6 . . . . . . . . . . Rewire 230 | . . . . . . 52 . . . . . . 2 . 116 . . . . . . . 3 . . 57 . . . . . . . Trap . | . . . . . . . . . . . . . . . . . . . . . . . . . . . . . . . . . . Miscellaneous . | . . . . . . . . . . . . . . . . . . . . . . . . . . . . . . . . . . Route ------- -11/Scrapyard -10/Materials (discovered 4 exits: *Mat x3 / *Min) -10/Mines -9/Materials (discovered 5 exits: *Mat x3 / *Min x2) -9/Mines (discovered 2 exits: *Mat x2) -8/Materials (discovered 3 exits: *Fac / [*Sto] / Gar) -8/Garrison (discovered 3 exits: *Fac x3) -7/Factory -7/Lower Caves -7/Lower Caves -7/Data Miner -6/Proximity Caves -6/Factory (discovered 2 exits: Ext / Gar) -6/Garrison (discovered 3 exits: *Fac x3) -6/Factory -6/Extension (discovered 2 exits: *Fac / *Cet) -6/Cetus (discovered 2 exits: *Fac / *Arc) -6/Archives (discovered 3 exits: *Fac / [*Hub x2]) -5/Factory (discovered 2 exits: *Fac / *Upp) -5/Upper Caves -5/Upper Caves -5/Zhirov -4/Proximity Caves -4/Factory (discovered 3 exits: *Res / *Upp x2) -4/Upper Caves -4/Upper Caves -4/Warlord -3/Proximity Caves -3/Research (discovered 3 exits: *Res / *Arm / *Tes) -3/Testing -2/Research (discovered 2 exits: *Acc / *Qua) -2/Quarantine -1/Access (discovered 2 exits: Sur / *Com) -1/Command History --------- Turn | Location | Event 5 | -11/Scrapyard | Discovered new exit (range 16) 88 | -11/Scrapyard | Entered Materials 200 | -10/Materials | Discovered new exit (range 16) 317 | -10/Materials | Build established: Mutant 526 | -10/Materials | Discovered new exit (range 3) 727 | -10/Materials | Discovered new exit (range 5) 806 | -10/Materials | Discovered new exit (range 16) 857 | -10/Materials | Build established: Scavenger-Mutant 1223 | -10/Materials | Entered Mines 1310 | -10/Mines | Met a Derelict bent on vengeance 1384 | -10/Mines | Assembled infested the area 1466 | -10/Mines | Learned location of Zion (-6) 1589 | -10/Mines | Discovered new exit (range 14) 1638 | -10/Mines | Entered Materials 1638 | -9/Materials | Evolved 2 slots: Propulsion x1, Weapon x1 1940 | -9/Materials | Build established: Scavenger-Gunner 1976 | -9/Materials | Discovered new exit (range 16) 2301 | -9/Materials | Discovered new exit (range 8) 2458 | -9/Materials | Build established: Scavenger-Tank 2475 | -9/Materials | Discovered new exit (range 6) 2485 | -9/Materials | Identified exit to Materials 2559 | -9/Materials | Central database locked down 2661 | -9/Materials | Discovered new exit (range 12) 2910 | -9/Materials | Build established: Scavenger-Gunner 3308 | -9/Materials | Build established: Scavenger-Mutant 3513 | -9/Materials | Discovered exit to Materials (range 10) 3608 | -9/Materials | Build established: Scavenger-Gunner 4038 | -9/Materials | Identified exit to Mines 4039 | -9/Materials | Entered Mines 4043 | -9/Mines | Assisted by bots powering up and referring to "LRC-V3" 4102 | -9/Mines | A weapon hastily lodged in a ceiling crevice suddenly fell to the ground 4114 | -9/Mines | Learned location of 1 exit from Lower Caves 4114 | -9/Mines | Discovered exit to Materials (range 6) 4347 | -9/Mines | Discovered exit to Materials (range 9) 4379 | -9/Mines | Entered Materials 4379 | -8/Materials | Accompanied by 3 allies 4379 | -8/Materials | Evolved 2 slots: Propulsion x1, Utility x1 4687 | -8/Materials | Destroyed 10 combat bots 4689 | -8/Materials | Lost 5 parts (1p3n1w) 4763 | -8/Materials | Discovered new exit (range 8) 5108 | -8/Materials | Discovered new exit (range 11) 5216 | -8/Materials | Build established: Tank 5232 | -8/Materials | Identified exit to Garrison 5232 | -8/Materials | Entered Garrison 5300 | -8/Garrison | Triggered checkpoint 5356 | -8/Garrison | Triggered checkpoint 5449 | -8/Garrison | Rescued a captive Derelict 5684 | -8/Garrison | Triggered checkpoint 5693 | -8/Garrison | Garrison Relay disabled 5761 | -8/Garrison | Discovered new exit (range 11) 5786 | -8/Garrison | Triggered checkpoint 5826 | -8/Garrison | Triggered checkpoint 5833 | -8/Garrison | Garrison Relay disabled 6080 | -8/Garrison | Triggered checkpoint 6086 | -8/Garrison | Triggered checkpoint 6161 | -8/Garrison | Discovered new exit (range 13) 6230 | -8/Garrison | Triggered checkpoint 6285 | -8/Garrison | Garrison Relay disabled 6368 | -8/Garrison | Discovered new exit (range 8) 6390 | -8/Garrison | Triggered checkpoint 6431 | -8/Garrison | Garrison Relay disabled 6550 | -8/Garrison | Garrison Relay disabled 6656 | -8/Garrison | Garrison Relay disabled 6798 | -8/Garrison | Entered Factory 6798 | -7/Factory | Evolved 2 slots: Utility x1, Weapon x1 7075 | -7/Factory | Garrison activated, responded to threat 7241 | -7/Factory | Discovered new exit (range 9) 7249 | -7/Factory | Identified exit to Lower Caves 7292 | -7/Factory | Entered Lower Caves 7293 | -7/Lower Caves | Identified exit to Lower Caves 7294 | -7/Lower Caves | Attracted the attention of an 0b10 checkpoint 7318 | -7/Lower Caves | Build established: Scavenger-Skirmisher 7406 | -7/Lower Caves | Met a Warlord Commander 7407 | -7/Lower Caves | Learned location of Warlord (-4) 7408 | -7/Lower Caves | Warlord Commander delivered Encrypted Comm Array 7409 | -7/Lower Caves | Found Encrypted Comm Array 7411 | -7/Lower Caves | Lost 3 parts (1p1n1u) 7790 | -7/Lower Caves | Entered another Lower Caves area 8167 | -7/Lower Caves | Discovered new exit (range 6) 8184 | -7/Lower Caves | Identified exit to Data Miner 8185 | -7/Lower Caves | Entered Data Miner 8187 | -7/Data Miner | Discovered new exit (range 6) 8208 | -7/Data Miner | Met Data Miner 8229 | -7/Data Miner | Learned location of Section 7 (-2) 8229 | -7/Data Miner | Acquired the access code to Warlord's prototype stash 8244 | -7/Data Miner | Received God Mode back door access code from Data Miner 8287 | -7/Data Miner | Identified exit to Proximity Caves 8288 | -7/Data Miner | Entered Proximity Caves 8952 | -6/Proximity Caves | Discovered new exit (range 11) 8963 | -6/Proximity Caves | Identified exit to Factory 8964 | -6/Proximity Caves | Entered Factory 8964 | -6/Factory | Evolved 2 slots: Utility x2 8965 | -6/Factory | Identified exit to Extension 8971 | -6/Factory | Found Prototype Launcher 8971 | -6/Factory | Identified Scatter Rocket Array 9024 | -6/Factory | Identified exit to Garrison 9859 | -6/Factory | Fabricated Multireflex Exoskeleton? 10422 | -6/Factory | Entered Garrison 10460 | -6/Garrison | Triggered checkpoint 10486 | -6/Garrison | Garrison Relay disabled 10532 | -6/Garrison | Triggered checkpoint 10551 | -6/Garrison | Triggered checkpoint 10634 | -6/Garrison | Spotted B-86 Titan 10641 | -6/Garrison | Spotted B-90 Cyclops 10652 | -6/Garrison | Rewired B-75 Beast 10684 | -6/Garrison | Lost 4 parts (1p1u2w) 10724 | -6/Garrison | Discovered new exit (range 10) 10737 | -6/Garrison | Identified exit to Factory 11165 | -6/Garrison | Build established: Scavenger-Tank 11175 | -6/Garrison | Discovered exit to Factory (range 12) 11286 | -6/Garrison | Triggered checkpoint 11482 | -6/Garrison | Discovered exit to Factory (range 19) 11532 | -6/Garrison | Attempted to access garrison exit controls, blocked by remote lockdown 11580 | -6/Garrison | Triggered checkpoint 11692 | -6/Garrison | Attempted to access garrison exit controls, blocked by remote lockdown 11830 | -6/Garrison | Entered Factory 12210 | -6/Factory | Garrison activated, responded to threat 12228 | -6/Factory | Lost 3 parts (1n1u1w) 12372 | -6/Factory | Garrison activated, responded to threat 12474 | -6/Factory | Core integrity fell below 50% 12542 | -6/Factory | Lost 5 parts (1p1n3w) 12678 | -6/Factory | System corruption reached 10% 12810 | -6/Factory | Discovered exit to Extension (range 9) 12833 | -6/Factory | Cargo convoy interrupted 12862 | -6/Factory | Entered Extension 12950 | -6/Extension | Rescued a captive Derelict 13110 | -6/Extension | Rescued a captive Derelict 13211 | -6/Extension | Build established: Scavenger-Skirmisher 13377 | -6/Extension | Rescued a captive Derelict 13378 | -6/Extension | Rescued a captive Derelict 13389 | -6/Extension | Rescued a captive Derelict 13500 | -6/Extension | Rescued a captive Derelict 13501 | -6/Extension | Rescued a captive Derelict 13618 | -6/Extension | Build established: Scavenger-Tank 13766 | -6/Extension | Spotted B-75 Beast 13784 | -6/Extension | Allies destroyed B-75 Beast 13791 | -6/Extension | Spotted B-75 Beast 13801 | -6/Extension | Destroyed B-75 Beast 13837 | -6/Extension | Lost 4 allies 13895 | -6/Extension | Rescued a captive Derelict 13896 | -6/Extension | Rescued a captive Derelict 13909 | -6/Extension | Rescued a captive Derelict 14007 | -6/Extension | Core integrity fell below 20% 14011 | -6/Extension | Energy Cycler disabled 14013 | -6/Extension | Rescued a captive Derelict 14014 | -6/Extension | Rescued A7 14015 | -6/Extension | Rescued a captive Derelict 14041 | -6/Extension | Lost 5 allies 14249 | -6/Extension | Discovered new exit (range 10) 14250 | -6/Extension | Discovered new exit (range 6) 14256 | -6/Extension | Identified exit to Cetus 14298 | -6/Extension | Entered Cetus 14298 | -6/Cetus | Accompanied by 9 allies (A7) 14303 | -6/Cetus | Acquired a Cetus Manufacturing Module code from A7 14314 | -6/Cetus | Spotted Cetus Guard 14314 | -6/Cetus | Spotted Cetus Guard 14318 | -6/Cetus | Spotted Cetus Guard 14319 | -6/Cetus | Spotted Cetus Guard 14329 | -6/Cetus | Allies destroyed Cetus Guard 14331 | -6/Cetus | Destroyed Cetus Guard 14331 | -6/Cetus | Allies destroyed Cetus Guard 14338 | -6/Cetus | Destroyed Cetus Guard 14393 | -6/Cetus | Started Cetus Manufacturing Module 14418 | -6/Cetus | Manufactured an Enhanced Grunt 14443 | -6/Cetus | Manufactured an Enhanced Grunt 14468 | -6/Cetus | Manufactured an Enhanced Grunt 14493 | -6/Cetus | Manufactured an Enhanced Grunt 14518 | -6/Cetus | Manufactured an Enhanced Grunt 14546 | -6/Cetus | Discovered new exit (range 16) 14569 | -6/Cetus | Spotted Cetus Guard 14570 | -6/Cetus | Spotted Cetus Guard 14582 | -6/Cetus | Spotted Cetus Guard 14582 | -6/Cetus | Spotted Cetus Guard 14583 | -6/Cetus | Allies destroyed Cetus Guard 14593 | -6/Cetus | Allies destroyed Cetus Guard 14598 | -6/Cetus | Allies destroyed Cetus Guard 14605 | -6/Cetus | Destroyed Cetus Guard 14613 | -6/Cetus | Discovered new exit (range 15) 14619 | -6/Cetus | Met Revision 17 14624 | -6/Cetus | Lost 3 allies 14643 | -6/Cetus | Found Prototype Device 14643 | -6/Cetus | Identified Exp. Thermal Shield 14677 | -6/Cetus | Murdered A7 14680 | -6/Cetus | Extracted ID and sensor layout for unrecognized location from A7's data core 14717 | -6/Cetus | Build established: Commander-Tank 14721 | -6/Cetus | Identified exit to Archives 14765 | -6/Cetus | Entered Archives 14765 | -6/Archives | Accompanied by 10 allies 14830 | -6/Archives | Discovered new exit (range 15) 14875 | -6/Archives | Discovered new exit (range 13) 14918 | -6/Archives | Discovered new exit (range 15) 15168 | -6/Archives | Identified exit to Factory 15189 | -6/Archives | Entered Factory 15189 | -5/Factory | Accompanied by 9 allies 15189 | -5/Factory | Evolved 2 slots: Power x1, Propulsion x1 15301 | -5/Factory | Discovered new exit (range 5) 15310 | -5/Factory | Identified exit to Factory 15502 | -5/Factory | Build established: Scavenger-Tank 15682 | -5/Factory | Lost 4 allies 16074 | -5/Factory | Build established: Scavenger-Skirmisher 16089 | -5/Factory | Allied Derelicts emerged from ambush trap array 16196 | -5/Factory | Lost 5 allies 16573 | -5/Factory | Cargo convoy interrupted 16597 | -5/Factory | Destroyed 8 combat bots 16607 | -5/Factory | Lost 3 parts (1p1n1w) 16611 | -5/Factory | System corruption reached 10% 16740 | -5/Factory | Found PL-3XN's Ring of Power 16961 | -5/Factory | Discovered new exit (range 14) 16989 | -5/Factory | First assault squad dispatched 17048 | -5/Factory | Identified exit to Upper Caves 17064 | -5/Factory | Entered Upper Caves 17284 | -5/Upper Caves | Learned 4 Factory zone layouts 17295 | -5/Upper Caves | Learned 4 Factory zone layouts 17382 | -5/Upper Caves | Discovered new exit (range 9) 17415 | -5/Upper Caves | Identified exit to Upper Caves 17416 | -5/Upper Caves | Entered another Upper Caves area 17507 | -5/Upper Caves | Attracted the attention of an 0b10 checkpoint 17898 | -5/Upper Caves | Entered an active Warlord outpost 17960 | -5/Upper Caves | Discovered new exit (range 9) 17970 | -5/Upper Caves | Identified exit to Zhirov 17997 | -5/Upper Caves | Found Alien Artifact 17997 | -5/Upper Caves | Identified Core Expander 17997 | -5/Upper Caves | Installed Core Expander, added new Power slot 18013 | -5/Upper Caves | Entered Zhirov 18015 | -5/Zhirov | Discovered new exit (range 3) 18037 | -5/Zhirov | Met Zhirov 18073 | -5/Zhirov | Learned location of Quarantine (-2) 18073 | -5/Zhirov | Learned location of Testing (-3) 18073 | -5/Zhirov | Learned location of Command (-1) 18083 | -5/Zhirov | Zhirov requested help retrieving the SGEMP Prototype 18103 | -5/Zhirov | Found Alien Artifact 18103 | -5/Zhirov | Identified Integrated Reactor 18103 | -5/Zhirov | Installed Integrated Reactor, increased core energy generation (+10) 18122 | -5/Zhirov | Found Alien Artifact 18281 | -5/Zhirov | Identified exit to Proximity Caves 18282 | -5/Zhirov | Entered Proximity Caves 18763 | -4/Proximity Caves | Discovered exit to Factory (range 14) 18775 | -4/Proximity Caves | Destroyed 7 combat bots 18781 | -4/Proximity Caves | Entered Factory 18781 | -4/Factory | Evolved 2 slots: Propulsion x1, Utility x1 19572 | -4/Factory | Discovered new exit (range 10) 19629 | -4/Factory | System corruption reached 10% 19679 | -4/Factory | Lost 9 parts (1p3n3u2w) 19690 | -4/Factory | Destroyed 7 combat bots 19781 | -4/Factory | First assault squad dispatched 19792 | -4/Factory | Identified exit to Research 19924 | -4/Factory | Identified exit to Upper Caves 20012 | -4/Factory | Entered Upper Caves 20072 | -4/Upper Caves | Encountered a Warlord checkpoint 20137 | -4/Upper Caves | Discovered new exit (range 7) 20140 | -4/Upper Caves | Identified exit to Upper Caves 20140 | -4/Upper Caves | Entered another Upper Caves area 20192 | -4/Upper Caves | Entered an active Warlord outpost 20199 | -4/Upper Caves | A Commander dispatched an escort 20206 | -4/Upper Caves | Learned location of 1 exit from Research 20206 | -4/Upper Caves | Learned Armory trap positions 20206 | -4/Upper Caves | Learned Armory terminal intel 20326 | -4/Upper Caves | Discovered new exit (range 2) 20327 | -4/Upper Caves | Identified exit to Warlord 20335 | -4/Upper Caves | Entered Warlord 20354 | -4/Warlord | System corruption cleaned by Quarantine Array 20534 | -4/Warlord | Opened Warlord's prototype stash 20543 | -4/Warlord | Found Prototype Device 20543 | -4/Warlord | Identified Exp. Cloaking Device 20549 | -4/Warlord | Found Prototype Processor 20549 | -4/Warlord | Identified Exp. Core Analyzer 20552 | -4/Warlord | Found Prototype Device 20552 | -4/Warlord | Identified Exp. Focal Shield 20600 | -4/Warlord | Met Warlord 20625 | -4/Warlord | Warlord's base attacked by MAIN.C 20650 | -4/Warlord | Found Prototype Energy Gun 20650 | -4/Warlord | Identified Vortex Shotgun 20658 | -4/Warlord | Found Vortex Shotgun 20828 | -4/Warlord | Build established: Scavenger-Scout 20975 | -4/Warlord | Warlord forces counterattacked 21058 | -4/Warlord | Spotted Striker 21060 | -4/Warlord | Spotted Executioner 21062 | -4/Warlord | Destroyed 8 combat bots 21075 | -4/Warlord | Destroyed Executioner 21081 | -4/Warlord | P-70 Sage assimilated allied KS-MDA(M) 21103 | -4/Warlord | Found Exp. Core Analyzer 21112 | -4/Warlord | Spotted Executioner 21153 | -4/Warlord | Lost 23 allies 21169 | -4/Warlord | Spotted Striker 21256 | -4/Warlord | Lost 9 allies 21300 | -4/Warlord | Warlord base infiltrated, sounded retreat 21311 | -4/Warlord | Spotted Executioner 21315 | -4/Warlord | Destroyed Executioner 21316 | -4/Warlord | Spotted Executioner 21321 | -4/Warlord | Destroyed Executioner 21331 | -4/Warlord | Spotted Executioner 21343 | -4/Warlord | Spotted Striker 21354 | -4/Warlord | Lost 4 allies 21356 | -4/Warlord | Spotted Striker 21397 | -4/Warlord | Spotted Striker 21399 | -4/Warlord | Build established: Scavenger-Gunner 21409 | -4/Warlord | Discovered new exit (range 14) 21414 | -4/Warlord | Identified exit to Proximity Caves 21437 | -4/Warlord | Entered Proximity Caves 21437 | -3/Proximity Caves | Accompanied by 2 allies 21463 | -3/Proximity Caves | Found Alien Artifact 21761 | -3/Proximity Caves | Discovered exit to Research (range 15) 21793 | -3/Proximity Caves | Entered Research 21793 | -3/Research | Accompanied by 2 allies 21793 | -3/Research | Evolved 2 slots: Utility x2 21794 | -3/Research | Identified exit to Testing 21944 | -3/Research | P-80 Master assimilated allied Archangel 7a 22001 | -3/Research | Revision forces began assault on 0b10 22024 | -3/Research | Discovered new exit (range 13) 22029 | -3/Research | Found Exp. Signal Interpreter 22041 | -3/Research | Identified exit to Research 22056 | -3/Research | Met up with Revision 17++ 22157 | -3/Research | Destroyed B-86 Titan 22304 | -3/Research | Discovered new exit (range 7) 22339 | -3/Research | Identified exit to Armory 22353 | -3/Research | Lost 5 allies 22501 | -3/Research | Research terminal network offline 22543 | -3/Research | Entered Testing 22765 | -3/Testing | Found Prototype Energy Cannon 22765 | -3/Testing | Identified Hpw. Disruptor Cannon 22798 | -3/Testing | Found Prototype Energy Cannon 22884 | -3/Testing | Discovered exit to Research (range 4) 23031 | -3/Testing | Entered Research 23031 | -2/Research | Warlord forces began assault on 0b10 23031 | -2/Research | Evolved 2 slots: Propulsion x1, Utility x1 23056 | -2/Research | Distinguished unit "Metalheads" dispatched to help 23056 | -2/Research | Distinguished unit "Lobotomizers" dispatched to help 23141 | -2/Research | Research machine network offline 23153 | -2/Research | Lost 4 allies 23266 | -2/Research | Lost 5 allies 23296 | -2/Research | Met DD-05H 23343 | -2/Research | Discovered new exit (range 9) 23347 | -2/Research | Identified exit to Access 23354 | -2/Research | Met up with Warlord 23723 | -2/Research | Borebot progress halted 23800 | -2/Research | Spotted Executioner 23806 | -2/Research | Borebot progress halted 23948 | -2/Research | Spotted B-90 Cyclops 24364 | -2/Research | Discovered new exit (range 15) 24371 | -2/Research | Identified exit to Quarantine 24536 | -2/Research | Given Cave Seal Controls access code 24538 | -2/Research | Entered Quarantine 24602 | -2/Quarantine | Lost 4 allies 24602 | -2/Quarantine | Identified Dimensional Node Initializer 24602 | -2/Quarantine | Initialized slip node 24816 | -2/Quarantine | Discovered exit to Access (range 15) 24816 | -2/Quarantine | Watched by a mysterious "MATRIX" hacker 24827 | -2/Quarantine | Entered Access 24827 | -1/Access | Evolved 2 slots: Utility x1, Weapon x1 24856 | -1/Access | Identified exit to Surface 24951 | -1/Access | Lost 3 allies 25090 | -1/Access | Spotted B-99 Colossus 25139 | -1/Access | Build established: Hacker-Gunner 25295 | -1/Access | Identified exit to Command 25659 | -1/Access | Entered Command 25673 | -1/Command | Found Gamma Bomb Array 25772 | -1/Command | Disengaged cave seal 25772 | -1/Command | Derelicts emerged from the dark tunnel 25772 | -1/Command | Welcomed Warlord to Command 25888 | -1/Command | Lost 3 allies 25913 | -1/Command | Spotted B-99 Colossus 25918 | -1/Command | Build established: Scavenger-Gunner 26038 | -1/Command | Lost 3 allies 26129 | -1/Command | Spotted M Guard 26129 | -1/Command | Spotted M Guard 26130 | -1/Command | Spotted Combat Programmer 26149 | -1/Command | Warlord commented on Warlord statues 26150 | -1/Command | Combat Programmer assimilated allied 0N-LKF(g) 26151 | -1/Command | Spotted Combat Programmer 26156 | -1/Command | Destroyed Combat Programmer 26157 | -1/Command | Combat Programmer assimilated allied NB-T6F(g) 26187 | -1/Command | All MAIN.C guards destroyed 26200 | -1/Command | Lost 14 allies 26272 | -1/Command | Met MAIN.C 26274 | -1/Command | 0b10 Conduit disabled 26290 | -1/Command | Warlord shut down involuntarily 26313 | -1/Command | System corruption reached 10% 26320 | -1/Command | Lost 3 allies 26330 | -1/Command | Destroyed MAIN.C Shell 26333 | -1/Command | MAIN.C activated Command garrisons 26334 | -1/Command | Identified Imp. Potential Cannon 26374 | -1/Command | P-80 Master assimilated allied X8-FN8(M) 26389 | -1/Command | Core integrity fell below 50% 26405 | -1/Command | Core integrity fell below 20% 26407 | -1/Command | Lost 3 allies 26409 | -1/Command | Destroyed by S-43 Plague with Heavy Machine Gun Last Messages --------------- 26391_ Knocked back. 26392_ Acquired 3 matter. 26394_ Knocked back. 26395_ Acquired 9 matter. 26397_ Lyr. Light Armor Plating destroyed. 26397_ Cmb. Antigrav System+ destroyed. 26397_ Knocked back. 26398_ Acquired 18 matter. 26400_ Knocked back. 26402_ 4CS%HYUDL0 Q#Y3AXQATE8R7 #XP/OAIZDXJ 26403_ Broken Cmb. Antigrav System+ destroyed. 26403_ C-45 Heavy ARC bursts open, deploying its payload. 26403_ S-43 Plague unfolds itself. 26404_ Exp. Signal Interpreter destroyed. 26404_ Critical hit (Blast). 26404_ Knocked back. 26405_ Acquired 18 matter. 26407_ Antigrav System destroyed. 26407_ Knocked back. 26407_ Acquired 11 matter. Map ----- +----------------------------------------------------+ | ?????????????????????????????????????????????????? | | ?????????????????????????????????????????????????? | | ?????????????????????????????????????????????????? | | ?????????????????????????????????????????????????? | | ?????????????????????????????????????????????????? | | ?????????????????????????????????????????????????? | | ?????????????????????????????????????????????????? | | ?????????????????????????????????????????????????? | | ?????????????????????????????????????????????????? | | ?????????????????????????????????????????????????? | | ?????????????????????????????????????????????????? | | ?????????????????????##################??????????? | | ????????????????????"""" """ #??????????? | | ???????????????????? "" # ?????????? | | ????????????????#""?"" !########### | | ????????????????#""""""" [!=%= | | ????????????????#" " s[s[=%[ | | ????????????????#"" """ s%s[%*= | | ????????????????#"" "" ! ssp]############ | | ????????????????# " " M%= |!#??????????? | | ????????????????# " % * %#??????????? | | ????????????????# " % %%#??????????? | | ????????????????#"" % =#??????????? | | ????????????????#"" %% #??????????? | | ????????????????# % "#??????????? | | ????????????????# @ % #??????????? | | ????????????????# "% #??????????? | | ????????????????" " " " #??????????? | | ????????????????" " " " " #??????????? | | ????????????????" " " #??????????? | | ????????????????# """""""""" " #??????????? | | ????????????????# " """ " "" """ #??????????? | | ????????????????# """ " " " #??????????? | | ????????????????######?################??????????? | | ?????????????????????????????????????????????????? | | ?????????????????????????????????????????????????? | | ?????????????????????????????????????????????????? | | ?????????????????????????????????????????????????? | | ?????????????????????????????????????????????????? | | ?????????????????????????????????????????????????? | | ?????????????????????????????????????????????????? | | ?????????????????????????????????????????????????? | | ?????????????????????????????????????????????????? | | ?????????????????????????????????????????????????? | | ?????????????????????????????????????????????????? | | ?????????????????????????????????????????????????? | | ?????????????????????????????????????????????????? | | ?????????????????????????????????????????????????? | | ?????????????????????????????????????????????????? | | ?????????????????????????????????????????????????? | +----------------------------------------------------+ Best States ------------- Heat Dissipation 100 Energy Generation 69 Energy Capacity 775 Matter Stores 300 Matter Capacity 300 Sight Range 22 Robot Scan Range 19 Terrain Scan Density 10 Jamming Range 16 Additional Mass Support 16 Armor Coverage 825 Resistance: KI 30 Core Shielding 20 Power Shielding 90 Propulsion Shielding 66 Phase Shifting 15 Evasion (%) 74 Targeting Accuracy 8 Core Analysis 12 Salvage Targeting 2 Offensive Hacking 42 Item Schematics ----------------- Combat Drone Bay | -7/Data Miner | Free Lgt. Regenerative Plating | -7/Data Miner | Free Multireflex Exoskeleton | -7/Data Miner | Free Antimatter Cannon | -7/Data Miner | Free Exp. Targeting Computer | -7/Data Miner | Free Antigrav System | -7/Data Miner | Free Imp. Focal Shield | -7/Data Miner | Free Hvy. Phase Cannon | -7/Data Miner | Free Hyb. Fission Core | -7/Data Miner | Free Adv. Field Recycling Unit | -7/Data Miner | Free Arm. Medium Treads | -7/Data Miner | Free Adv. Transmission Jammer | -7/Data Miner | Free Adv. Coolant Injector | -7/Data Miner | Free Exp. Heat Sink | -5/Zhirov | Free Assault Drone Bay | -5/Zhirov | Free Exp. Optical Array | -5/Zhirov | Free Imp. Arc Thrower | -5/Zhirov | Free Enh. Force Rifle | -2/Quarantine | Archive Exp. Energy Well | -2/Quarantine | Archive Robot Schematics ------------------ R-10 Processor | -7/Data Miner | Free G-47 Trooper | -7/Data Miner | Free E-15 Imp | -7/Data Miner | Free Y-54 Guardian | -7/Data Miner | Free S-27 Virus | -7/Data Miner | Free Fabricated ------------ Multireflex Exoskeleton | x1 | -6/Factory Repaired ---------- Nothing Studied --------- Aluminum Leg | -9/Materials | Hacked Rocket Launcher | -9/Materials | Hacked Cmb. Airjet | -3/Research | Hacked Cmb. Antigrav System | -3/Testing | Hacked Alien Tech Used ----------------- Core Expander Integrated Reactor Dimensional Node Initializer Achievements -------------- None Challenges ------------ None Game ------ Seed ImprinterIonManipulator Manual? 0 Play Time 05:02:36 Cumulative 548.1 hours Start 2026.07.24 @ 17:45:30 End 2026.07.25 @ 19:23:27 Sessions 5 Manual Loads 0 Difficulty Rogue Special Mode None Game No. 193 Rogue 172 Adventurer 21 Explorer 0 Win Type - Total 28 Types 16/1/6/1/0/0/0/3/0/1 Lore% 70 Gallery% 75 Achievement% 69 Wizard Run 0 Options --------- Layout 1 ASCII 0 Keyboard 0 Movement Mouse Keybinds 0 Fullscreen 2 Font 32/SmallcapsGlow Map View 77x35 Zoom Use 0% Tactical HUD 1 Map Filters NONE Filters NONE Steam 1 RUN: 894a26d3-419a-4bb0-9c8b-adc4a33287a9